Workbook

Sheet Data Entry
B1: Early Literacy Screener | C1: Blending Syllables | D1: Segmenting to Syllables | E1: Blending Phonemes | F1: Segmenting to Phonemes | G1: PHONOLOGICAL AVERAGE | H1: Phonological Memory | I1: Letter Naming Fluency | J1: TOTAL Raw Score %
B2: Students' Names | K2: Mean
A3: 1 | B3: Akinomesk, Joshua | C3: 5 | D3: 4 | E3: 4 | F3: 5 | G3: =SUM(E3:F3)/2 -> 4.5 | H3: 8 | I3: 45 | J3: =SUM(C3:F3,H3:I3) -> 71 | K3: =$J$103 -> 44.55172414
A4: 2 | B4: Anderski, Violet | C4: 4 | D4: 3 | E4: 3 | F4: 2 | G4: =SUM(E4:F4)/2 -> 2.5 | H4: 8 | I4: 33 | J4: =SUM(C4:F4,H4:I4) -> 53 | K4: =$J$103 -> 44.55172414
A5: 3 | B5: Actara, Belle | C5: 2 | D5: 2 | E5: 1 | F5: 0 | G5: 0.5 | H5: 3 | I5: 2 | J5: 10 | K5: =$J$103 -> 44.55172414
A6: 4 | B6: Bandito, Nicole | C6: 3 | D6: 2 | E6: 1 | F6: 2 | G6: 1.5 | H6: 4 | I6: 13 | J6: 25 | K6: 44.55172414
A7: 5 | B7: Capriano, Geno | C7: 5 | D7: 4 | E7: 4 | F7: 3 | G7: 3.5 | H7: 6 | I7: 45 | J7: 67 | K7: 44.55172414
A8: 6 | B8: Dweck, Kaori | C8: 5 | D8: 3 | E8: 3 | F8: 3 | G8: 3 | H8: 5 | I8: 37 | J8: 56 | K8: 44.55172414
A9: 7 | B9: Essman, Cal | C9: 3 | D9: 2 | E9: 2 | F9: 1 | G9: 1.5 | H9: 8 | I9: 30 | J9: 46 | K9: 44.55172414
A10: 8 | B10: Fast, Autumn | C10: 5 | D10: 4 | E10: 3 | F10: 2 | G10: 2.5 | H10: 6 | I10: 41 | J10: 61 | K10: 44.55172414
A11: 9 | B11: Greenwall, Brayden | C11: 5 | D11: 5 | E11: 4 | F11: 4 | G11: 4 | H11: 8 | I11: 40 | J11: 66 | K11: 44.55172414
A12: 10 | B12: Hallenko, Pierce | C12: 2 | D12: 2 | E12: 0 | F12: 2 | G12: 1 | H12: 4 | I12: 9 | J12: 19 | K12: 44.55172414
A13: 11 | B13: Lowen, Hunter | C13: 5 | D13: 1 | E13: 4 | F13: 0 | G13: 2 | H13: 7 | I13: 35 | J13: 52 | K13: 44.55172414
A14: 12 | B14: Marbel, Melody | C14: 5 | D14: 3 | E14: 5 | F14: 2 | G14: 3.5 | H14: 9 | I14: 18 | J14: 42 | K14: 44.55172414
A15: 13 | B15: Peterson, Carmen | C15: 3 | D15: 1 | E15: 0 | F15: 0 | G15: 0 | H15: 4 | I15: 9 | J15: 17 | K15: 44.55172414
A16: 14 | B16: Rice, Bruce | C16: 2 | D16: 1 | E16: 0 | F16: 0 | G16: 0 | H16: 8 | I16: 33 | J16: 44 | K16: 44.55172414
A17: 15 | B17: Broman, Clara | C17: 5 | D17: 2 | E17: 4 | F17: 2 | G17: 3 | H17: 7 | I17: 19 | J17: 39 | K17: 44.55172414
A18: 16 | B18: Catchy, Danny | C18: 5 | D18: 3 | E18: 5 | F18: 2 | G18: 3.5 | H18: 4 | I18: 33 | J18: 52 | K18: 44.55172414
A19: 17 | B19: Cayburn, Karl | C19: 4 | D19: 3 | E19: 4 | F19: 3 | G19: 3.5 | H19: 7 | I19: 36 | J19: 57 | K19: 44.55172414
A20: 18 | B20: Demonslayer, Darryl | C20: 3 | D20: 2 | E20: 1 | F20: 0 | G20: 0.5 | H20: 6 | I20: 10 | J20: 22 | K20: 44.55172414
A21: 19 | B21: Hanson, Sawyer | C21: 3 | D21: 1 | E21: 2 | F21: 0 | G21: 1 | H21: 3 | I21: 11 | J21: 20 | K21: 44.55172414
A22: 20 | B22: Hiebert, Bruce | C22: 5 | D22: 3 | E22: 5 | F22: 3 | G22: 4 | H22: 5 | I22: 48 | J22: 69 | K22: 44.55172414
A23: 21 | B23: Heidelburg, Corby | C23: 3 | D23: 3 | E23: 2 | F23: 3 | G23: 2.5 | H23: 7 | I23: 37 | J23: 55 | K23: 44.55172414
A24: 22 | B24: Krinkle, Luke | C24: 2 | D24: 2 | E24: 2 | F24: 1 | G24: 1.5 | H24: 4 | I24: 23 | J24: 34 | K24: 44.55172414
A25: 23 | B25: Lagensky, Patty | C25: 3 | D25: 0 | E25: 1 | F25: 1 | G25: 1 | H25: 3 | I25: 12 | J25: 20 | K25: 44.55172414
A26: 24 | B26: Lorrey, Fred | C26: 4 | D26: 1 | E26: 1 | F26: 2 | G26: 1.5 | H26: 5 | I26: 14 | J26: 27 | K26: 44.55172414
A27: 25 | B27: Marvel, Captain | C27: 3 | D27: 2 | E27: 2 | F27: 2 | G27: 2 | H27: 4 | I27: 24 | J27: 37 | K27: 44.55172414
A28: 26 | B28: Manswella, Rico | C28: 3 | D28: 2 | E28: 3 | F28: 1 | G28: 2 | H28: 7 | I28: 34 | J28: 50 | K28: 44.55172414
A29: 27 | B29: Ohera, Marian | C29: 2 | D29: 3 | E29: 2 | F29: 2 | G29: 2 | H29: 6 | I29: 12 | J29: 27 | K29: 44.55172414
A30: 28 | B30: Penner, Annie | C30: 3 | D30: 2 | E30: 2 | F30: 2 | G30: 2 | H30: 8 | I30: 23 | J30: 40 | K30: 44.55172414
A31: 29 | B31: Sarbucker, Cassedy | C31: 4 | D31: 1 | E31: 1 | F31: 3 | G31: 2 | H31: 5 | I31: 12 | J31: 26 | K31: 44.55172414
A32: 30 | B32: Schell, John | C32: 4 | D32: 2 | E32: 2 | F32: 2 | G32: 2 | H32: 6 | I32: 23 | J32: 39 | K32: =$J$103 -> 44.55172414
A33: 31 | B33: Skaper, Leah | C33: 3 | D33: 3 | E33: 2 | F33: 1 | G33: 1.5 | H33: 4 | I33: 11 | J33: 24 | K33: =$J$103 -> 44.55172414
A34: 32 | B34: Shneider, Ingrid | C34: 5 | D34: 2 | E34: 3 | F34: 2 | G34: 2.5 | H34: 5 | I34: 10 | J34: 27 | K34: =$J$103 -> 44.55172414
A35: 33 | B35: klywalker, Eric | C35: 4 | D35: 4 | E35: 4 | F35: 3 | G35: 3.5 | H35: 6 | I35: 22 | J35: 43 | K35: 44.55172414
A36: 34 | B36: Voit, John | C36: 3 | D36: 3 | E36: 3 | F36: 3 | G36: 3 | H36: 3 | I36: 32 | J36: 47 | K36: 44.55172414
A37: 35 | B37: Benito, Ester | C37: 5 | D37: 2 | E37: 3 | F37: 2 | G37: 2.5 | H37: 6 | I37: 19 | J37: 37 | K37: 44.55172414
A38: 36 | B38: Dorito, Danny | C38: 2 | D38: 3 | E38: 2 | F38: 2 | G38: 2 | H38: 3 | I38: 10 | J38: 22 | K38: 44.55172414
A39: 37 | B39: Friesen, Elaine | C39: 4 | D39: 3 | E39: 3 | F39: 3 | G39: 3 | H39: 8 | I39: 38 | J39: 59 | K39: 44.55172414
A40: 38 | B40: Fronk, Clara | C40: 2 | D40: 3 | E40: 3 | F40: 2 | G40: 2.5 | H40: 4 | I40: 45 | J40: 59 | K40: 44.55172414
A41: 39 | B41: Gillingham, Teddy | C41: 5 | D41: 4 | E41: 3 | F41: 2 | G41: 2.5 | H41: 3 | I41: 23 | J41: 40 | K41: 44.55172414
A42: 40 | B42: Harder, Hellen | C42: 4 | D42: 2 | E42: 3 | F42: 2 | G42: 2.5 | H42: 3 | I42: 44 | J42: 58 | K42: 44.55172414
A43: 41 | B43: Heinrichs, Audrey | C43: 4 | D43: 3 | E43: 2 | F43: 1 | G43: 1.5 | H43: 4 | I43: 35 | J43: 49 | K43: 44.55172414
A44: 42 | B44: Hofmann, Joan | C44: 4 | D44: 4 | E44: 4 | F44: 1 | G44: 2.5 | H44: 8 | I44: 48 | J44: 69 | K44: 44.55172414
A45: 43 | B45: Klippenstein, Joey | C45: 3 | D45: 3 | E45: 4 | F45: 2 | G45: 3 | H45: 7 | I45: 35 | J45: 54 | K45: 44.55172414
A46: 44 | B46: Kolair, Henry | C46: 5 | D46: 3 | E46: 5 | F46: 2 | G46: 3.5 | H46: 8 | I46: 42 | J46: 65 | K46: 44.55172414
A47: 45 | B47: Marquette, Ryan | C47: 5 | D47: 3 | E47: 3 | F47: 2 | G47: 2.5 | H47: 7 | I47: 41 | J47: 61 | K47: 44.55172414
A48: 46 | B48: Martin, Katie | C48: 4 | D48: 4 | E48: 4 | F48: 3 | G48: 3.5 | H48: 8 | I48: 47 | J48: 70 | K48: 44.55172414
A49: 47 | B49: Mutch, Jayden | C49: 3 | D49: 2 | E49: 2 | F49: 2 | G49: 2 | H49: 6 | I49: 32 | J49: 47 | K49: 44.55172414
A50: 48 | B50: Penner, Robert | C50: 4 | D50: 2 | E50: 3 | F50: 3 | G50: 3 | H50: 7 | I50: 39 | J50: 58 | K50: 44.55172414
A51: 49 | B51: Schultz, Mario | C51: 2 | D51: 1 | E51: 3 | F51: 3 | G51: 3 | H51: 5 | I51: 33 | J51: 47 | K51: 44.55172414
A52: 50 | B52: Smith, Abby | C52: 4 | D52: 3 | E52: 4 | F52: 2 | G52: 3 | H52: 5 | I52: 37 | J52: 55 | K52: 44.55172414
A53: 51 | B53: Vogt, Adelle | C53: 4 | D53: 2 | E53: 4 | F53: 3 | G53: 3.5 | H53: 7 | I53: 42 | J53: 62 | K53: 44.55172414
A54: 52 | B54: Zilberman, Toni | C54: 3 | D54: 3 | E54: 5 | F54: 2 | G54: 3.5 | H54: 6 | I54: 23 | J54: 42 | K54: 44.55172414
A55: 53 | B55: Ardene, Mary | C55: 4 | D55: 2 | E55: 4 | F55: 2 | G55: 3 | H55: 6 | I55: 35 | J55: 53 | K55: =$J$103 -> 44.55172414
A56: 54 | B56: Brother, Peter | C56: 5 | D56: 3 | E56: 5 | F56: 2 | G56: 3.5 | H56: 8 | I56: 39 | J56: 62 | K56: =$J$103 -> 44.55172414
A57: 55 | B57: Bugeate, Moreen | C57: 2 | D57: 1 | E57: 2 | F57: 1 | G57: 1.5 | H57: 2 | I57: 12 | J57: 20 | K57: =$J$103 -> 44.55172414
A58: 56 | B58: Candy, William | C58: 4 | D58: 2 | E58: 2 | F58: 2 | G58: 2 | H58: 5 | I58: 34 | J58: 49 | K58: 44.55172414
A59: 57 | B59: Dyck, Teddy | C59: 4 | D59: 2 | E59: 2 | F59: 2 | G59: 2 | H59: 5 | I59: 23 | J59: 38 | K59: 44.55172414
A60: 58 | B60: Hudson, Harriette | C60: 5 | D60: 2 | E60: 3 | F60: 1 | G60: 2 | H60: 4 | I60: 43 | J60: 58 | K60: 44.55172414
A61: 59 | B61: Messia, Penny | C61: 5 | D61: 3 | E61: 3 | F61: 2 | G61: 2.5 | H61: 7 | I61: 28 | J61: 48 | K61: 44.55172414
A62: 60 | B62: Penner, Elaine | C62: 3 | D62: 3 | E62: 2 | F62: 2 | G62: 2 | H62: 8 | I62: 44 | J62: 62 | K62: 44.55172414
A63: 61 | B63: Rajooley, Anna | C63: 3 | D63: 4 | E63: 4 | F63: 3 | G63: 3.5 | H63: 7 | I63: 21 | J63: 42 | K63: 44.55172414
A64: 62 | B64: Renzulli, Leah | C64: 4 | D64: 4 | E64: 3 | F64: 2 | G64: 2.5 | H64: 7 | I64: 18 | J64: 38 | K64: 44.55172414
A65: 63 | B65: Roxmeyer, Zoey | C65: 2 | D65: 3 | E65: 3 | F65: 3 | G65: 3 | H65: 6 | I65: 32 | J65: 49 | K65: 44.55172414
A66: 64 | B66: Sailing, Mark | C66: 3 | D66: 4 | E66: 3 | F66: 2 | G66: 2.5 | H66: 8 | I66: 41 | J66: 61 | K66: 44.55172414
A67: 65 | B67: Sage, Taber | C67: 3 | D67: 3 | E67: 5 | F67: 3 | G67: 4 | H67: 8 | I67: 39 | J67: 61 | K67: 44.55172414
A68: 66 | B68: Sarbock, Melanie | C68: 4 | D68: 4 | E68: 3 | F68: 3 | G68: =SUM(E68:F68)/2 -> 3 | H68: 6 | I68: 31 | J68: =SUM(C68:F68,H68:I68) -> 51 | K68: 44.55172414
A69: 67 | B69: Senkiw, John | C69: 5 | D69: 3 | E69: 3 | F69: 2 | G69: 2.5 | H69: 4 | I69: 37 | J69: 54 | K69: 44.55172414
A70: 68 | B70: Tellery, Simon | C70: 4 | D70: 2 | E70: 4 | F70: 2 | G70: 3 | H70: 3 | I70: 34 | J70: 49 | K70: 44.55172414
A71: 69 | B71: Ustabar, Vallery | C71: 3 | D71: 3 | E71: 3 | F71: 2 | G71: 2.5 | H71: 6 | I71: 25 | J71: 42 | K71: 44.55172414
A72: 70 | B72: Zark, Timmy | C72: 3 | D72: 2 | E72: 2 | F72: 1 | G72: 1.5 | H72: 4 | I72: 22 | J72: 34 | K72: 44.55172414
A73: 71 | B73: Belburg, Elise | C73: 5 | D73: 2 | E73: 4 | F73: 2 | G73: 3 | H73: 4 | I73: 18 | J73: 35 | K73: 44.55172414
A74: 72 | B74: Brow, Lenny | C74: 2 | D74: 1 | E74: 2 | F74: 1 | G74: 1.5 | H74: 1 | I74: 8 | J74: 15 | K74: 44.55172414
A75: 73 | B75: Cramer, Sophie | C75: 4 | D75: 3 | E75: 4 | F75: 3 | G75: 3.5 | H75: 8 | I75: 36 | J75: 58 | K75: 44.55172414
A76: 74 | B76: Dedrington, Nick | C76: 5 | D76: 2 | E76: 2 | F76: 1 | G76: 1.5 | H76: 3 | I76: 15 | J76: 28 | K76: 44.55172414
A77: 75 | B77: Enns, Benjamin | C77: 5 | D77: 2 | E77: 1 | F77: 1 | G77: 1 | H77: 3 | I77: 20 | J77: 32 | K77: 44.55172414
A78: 76 | B78: Passenger, Phoebe | C78: 4 | D78: 2 | E78: 2 | F78: 2 | G78: 2 | H78: 5 | I78: 42 | J78: 57 | K78: 44.55172414
A79: 77 | B79: Pattern, Viyan | C79: 3 | D79: 1 | E79: 1 | F79: 1 | G79: 1 | H79: 2 | I79: 14 | J79: 22 | K79: 44.55172414
A80: 78 | B80: Pries, Nolan | C80: 3 | D80: 1 | E80: 1 | F80: 1 | G80: 1 | H80: 3 | I80: 19 | J80: 28 | K80: 44.55172414
A81: 79 | B81: Prodical, Sophie | C81: 2 | D81: 4 | E81: 3 | F81: 2 | G81: 2.5 | H81: 8 | I81: 24 | J81: 43 | K81: 44.55172414
A82: 80 | B82: Rockport, Sandra | C82: 3 | D82: 3 | E82: 2 | F82: 2 | G82: 2 | H82: 5 | I82: 28 | J82: 43 | K82: 44.55172414
A83: 81 | B83: Sarkuchi, Danny | C83: 3 | D83: 2 | E83: 1 | F83: 1 | G83: 1 | H83: 4 | I83: 22 | J83: 33 | K83: 44.55172414
A84: 82 | B84: Schneider, Lucas | C84: 4 | D84: 2 | E84: 2 | F84: 1 | G84: 1.5 | H84: 4 | I84: 19 | J84: 32 | K84: =$J$103 -> 44.55172414
A85: 83 | B85: Sellandro, Dennis | C85: 5 | D85: 3 | E85: 3 | F85: 2 | G85: 2.5 | H85: 6 | I85: 34 | J85: 53 | K85: =$J$103 -> 44.55172414
A86: 84 | B86: Wallburg, Rose | C86: 4 | D86: 2 | E86: 2 | F86: 1 | G86: 1.5 | H86: 7 | I86: 26 | J86: 42 | K86: =$J$103 -> 44.55172414
A87: 85 | B87: Wollmann, Jayson | C87: 3 | D87: 2 | E87: 1 | F87: 1 | G87: 1 | H87: 3 | I87: 19 | J87: 29 | K87: 44.55172414
A88: 86 | B88: Wood, Anna | C88: 4 | D88: 3 | E88: 3 | F88: 2 | G88: 2.5 | H88: 9 | I88: 29 | J88: 50 | K88: =$J$103 -> 44.55172414
A89: 87 | B89: Yong, Liam | C89: 5 | D89: 5 | E89: 3 | F89: 3 | G89: 3 | H89: 9 | I89: 42 | J89: 67 | K89: =$J$103 -> 44.55172414
A90: 88 | G90: 0 | J90: 0
A91: 89 | G91: 0 | J91: 0
A92: 90 | G92: 0 | J92: 0
A93: 91 | G93: 0 | J93: 0
A94: 92 | G94: 0 | J94: 0
A95: 93 | G95: 0 | J95: 0
A96: 94 | G96: 0 | J96: 0
A97: 95 | G97: 0 | J97: 0
A98: 96 | G98: 0 | J98: 0
A99: 97 | G99: 0 | J99: 0
A100: 98 | G100: 0 | J100: 0
A101: 99 | G101: 0 | J101: 0
A102: 100 | G102: 0 | J102: 0
B103: AVERAGES: | C103: =AVERAGE(C3:C102) -> 3.701149425 | D103: 2.540229885 | E103: =AVERAGE(E3:E102) -> 2.735632184 | F103: =AVERAGE(F3:F102) -> 1.91954023 | G103: =AVERAGE(C103:F103) -> 2.724137931 | H103: =AVERAGE(H3:H102) -> 5.586206897 | I103: =AVERAGE(I3:I102) -> 28.06896552 | J103: =AVERAGEIF(J3:J102,"<>0") -> 44.55172414
B104: Standard Deviations: | C104: =STDEV(C3:C102) -> 1.024297179 | D104: 0.9977252931 | E104: 1.243211989 | F104: 0.9303461572 | G104: =AVERAGE(C104:F104) -> 1.048895154 | H104: 1.944292327 | I104: 11.76098507 | J104: =STDEV(IF(J3:J102<>0,J3:J102)) -> 15.1433143
B105: Percentages: | C105: =(C103/5)*100 -> 74.02298851 | D105: =(D103/5)*100 -> 50.8045977 | E105: 54.71264368 | F105: 38.3908046 | G105: 54.48275862 | H105: =H103/10*100 -> 55.86206897 | I105: =I103/100*100 -> 28.06896552 | J105: 80 | K105: Total Possible
B106: =COUNTA(B3:B102) -> 87 | C106: Number of Students | J106: =J103/80 -> 0.5568965517 | K106: Total/Tot.Possible
J107: =J106*100 -> 55.68965517 | K107: Percentage

Sheet Group Graphs

Sheet Graph of Raw Scores

Sheet Class 1
B1: Teacher: | C1: Thelma Doerksen
B2: Grade: | C2: K1D | P2: At-Risk Students
A3: # | C3: Blending Syllables | D3: Segmenting to Syllables | E3: Blending Phonemes | F3: Segmenting to Phonemes | G3: Phonological Memory | H3: Letter Naming Fluency | I3: Grand Total | P3: =IF(I8<$I$7,B8,"") -> 
C5: ='Data Entry'!$C$103 -> 3.701149425 | D5: ='Data Entry'!$D$103 -> 2.540229885 | E5: ='Data Entry'!E103 -> 2.735632184 | F5: ='Data Entry'!F103 -> 1.91954023 | G5: ='Data Entry'!H103 -> 5.586206897 | H5: ='Data Entry'!$I$103 -> 28.06896552 | I5: ='Data Entry'!J103 -> 44.55172414 | J5: Means | P5: Actara, Belle
B6: Student | C6: ='Data Entry'!$C$104 -> 1.024297179 | D6: ='Data Entry'!$D$104 -> 0.9977252931 | E6: ='Data Entry'!E104 -> 1.243211989 | F6: ='Data Entry'!F104 -> 0.9303461572 | G6: ='Data Entry'!H104 -> 1.944292327 | H6: ='Data Entry'!$I$104 -> 11.76098507 | I6: ='Data Entry'!J104 -> 15.1433143 | J6: Std. Devs. | P6: Bandito, Nicole
B7: Names | C7: =C5-C6 -> 2.676852247 | D7: =D5-D6 -> 1.542504592 | E7: =E5-E6 -> 1.492420195 | F7: 0.9891940727 | G7: 3.641914569 | H7: 16.30798045 | I7: =I5-(I6) -> 29.40840984 | J7: Cut-off Scores
A8: 1 | B8: =IF('Data Entry'!B3<>0,'Data Entry'!B3,"") -> Akinomesk, Joshua | C8: =IF('Data Entry'!C3<>"",'Data Entry'!C3,"") -> 5 | D8: =IF('Data Entry'!D3<>"",'Data Entry'!D3,"") -> 4 | E8: =IF('Data Entry'!E3<>"",'Data Entry'!E3,"") -> 4 | F8: =IF('Data Entry'!F3<>"",'Data Entry'!F3,"") -> 5 | G8: =IF('Data Entry'!H3<>"",'Data Entry'!H3,"") -> 8 | H8: =IF('Data Entry'!I3<>"",'Data Entry'!I3,"") -> 45 | I8: =IF(SUM(C8:H8)<>0,SUM(C8:H8),"") -> 71 | J8: ='Data Entry'!$J$103 -> 44.55172414
A9: 2 | B9: =IF('Data Entry'!B4<>0,'Data Entry'!B4,"") -> Anderski, Violet | C9: =IF('Data Entry'!C4<>"",'Data Entry'!C4,"") -> 4 | D9: =IF('Data Entry'!D4<>"",'Data Entry'!D4,"") -> 3 | E9: =IF('Data Entry'!E4<>"",'Data Entry'!E4,"") -> 3 | F9: =IF('Data Entry'!F4<>"",'Data Entry'!F4,"") -> 2 | G9: =IF('Data Entry'!H4<>"",'Data Entry'!H4,"") -> 8 | H9: =IF('Data Entry'!I4<>"",'Data Entry'!I4,"") -> 33 | I9: =IF(SUM(C9:H9)<>0,SUM(C9:H9),"") -> 53 | J9: ='Data Entry'!$J$103 -> 44.55172414
A10: 3 | B10: =IF('Data Entry'!B5<>0,'Data Entry'!B5,"") -> Actara, Belle | C10: =IF('Data Entry'!C5<>"",'Data Entry'!C5,"") -> 2 | D10: =IF('Data Entry'!D5<>"",'Data Entry'!D5,"") -> 2 | E10: =IF('Data Entry'!E5<>"",'Data Entry'!E5,"") -> 1 | F10: =IF('Data Entry'!F5<>"",'Data Entry'!F5,"") -> 0 | G10: =IF('Data Entry'!H5<>"",'Data Entry'!H5,"") -> 3 | H10: =IF('Data Entry'!I5<>"",'Data Entry'!I5,"") -> 2 | I10: =IF(SUM(C10:H10)<>0,SUM(C10:H10),"") -> 10 | J10: ='Data Entry'!$J$103 -> 44.55172414
A11: 4 | B11: =IF('Data Entry'!B6<>0,'Data Entry'!B6,"") -> Bandito, Nicole | C11: =IF('Data Entry'!C6<>"",'Data Entry'!C6,"") -> 3 | D11: =IF('Data Entry'!D6<>"",'Data Entry'!D6,"") -> 2 | E11: =IF('Data Entry'!E6<>"",'Data Entry'!E6,"") -> 1 | F11: =IF('Data Entry'!F6<>"",'Data Entry'!F6,"") -> 2 | G11: =IF('Data Entry'!H6<>"",'Data Entry'!H6,"") -> 4 | H11: =IF('Data Entry'!I6<>"",'Data Entry'!I6,"") -> 13 | I11: 25 | J11: ='Data Entry'!$J$103 -> 44.55172414
A12: 5 | B12: =IF('Data Entry'!B7<>0,'Data Entry'!B7,"") -> Capriano, Geno | C12: =IF('Data Entry'!C7<>"",'Data Entry'!C7,"") -> 5 | D12: =IF('Data Entry'!D7<>"",'Data Entry'!D7,"") -> 4 | E12: =IF('Data Entry'!E7<>"",'Data Entry'!E7,"") -> 4 | F12: =IF('Data Entry'!F7<>"",'Data Entry'!F7,"") -> 3 | G12: =IF('Data Entry'!H7<>"",'Data Entry'!H7,"") -> 6 | H12: =IF('Data Entry'!I7<>"",'Data Entry'!I7,"") -> 45 | I12: 67 | J12: ='Data Entry'!$J$103 -> 44.55172414 | P12: Hallenko, Pierce
A13: 6 | B13: =IF('Data Entry'!B8<>0,'Data Entry'!B8,"") -> Dweck, Kaori | C13: =IF('Data Entry'!C8<>"",'Data Entry'!C8,"") -> 5 | D13: =IF('Data Entry'!D8<>"",'Data Entry'!D8,"") -> 3 | E13: =IF('Data Entry'!E8<>"",'Data Entry'!E8,"") -> 3 | F13: =IF('Data Entry'!F8<>"",'Data Entry'!F8,"") -> 3 | G13: =IF('Data Entry'!H8<>"",'Data Entry'!H8,"") -> 5 | H13: =IF('Data Entry'!I8<>"",'Data Entry'!I8,"") -> 37 | I13: 56 | J13: ='Data Entry'!$J$103 -> 44.55172414
A14: 7 | B14: =IF('Data Entry'!B9<>0,'Data Entry'!B9,"") -> Essman, Cal | C14: =IF('Data Entry'!C9<>"",'Data Entry'!C9,"") -> 3 | D14: =IF('Data Entry'!D9<>"",'Data Entry'!D9,"") -> 2 | E14: =IF('Data Entry'!E9<>"",'Data Entry'!E9,"") -> 2 | F14: =IF('Data Entry'!F9<>"",'Data Entry'!F9,"") -> 1 | G14: =IF('Data Entry'!H9<>"",'Data Entry'!H9,"") -> 8 | H14: =IF('Data Entry'!I9<>"",'Data Entry'!I9,"") -> 30 | I14: 46 | J14: ='Data Entry'!$J$103 -> 44.55172414
A15: 8 | B15: =IF('Data Entry'!B10<>0,'Data Entry'!B10,"") -> Fast, Autumn | C15: =IF('Data Entry'!C10<>"",'Data Entry'!C10,"") -> 5 | D15: =IF('Data Entry'!D10<>"",'Data Entry'!D10,"") -> 4 | E15: =IF('Data Entry'!E10<>"",'Data Entry'!E10,"") -> 3 | F15: =IF('Data Entry'!F10<>"",'Data Entry'!F10,"") -> 2 | G15: =IF('Data Entry'!H10<>"",'Data Entry'!H10,"") -> 6 | H15: =IF('Data Entry'!I10<>"",'Data Entry'!I10,"") -> 41 | I15: 61 | J15: ='Data Entry'!$J$103 -> 44.55172414 | P15: Peterson, Carmen
A16: 9 | B16: =IF('Data Entry'!B11<>0,'Data Entry'!B11,"") -> Greenwall, Brayden | C16: =IF('Data Entry'!C11<>"",'Data Entry'!C11,"") -> 5 | D16: =IF('Data Entry'!D11<>"",'Data Entry'!D11,"") -> 5 | E16: =IF('Data Entry'!E11<>"",'Data Entry'!E11,"") -> 4 | F16: =IF('Data Entry'!F11<>"",'Data Entry'!F11,"") -> 4 | G16: =IF('Data Entry'!H11<>"",'Data Entry'!H11,"") -> 8 | H16: =IF('Data Entry'!I11<>"",'Data Entry'!I11,"") -> 40 | I16: 66 | J16: ='Data Entry'!$J$103 -> 44.55172414
A17: 10 | B17: =IF('Data Entry'!B12<>0,'Data Entry'!B12,"") -> Hallenko, Pierce | C17: =IF('Data Entry'!C12<>"",'Data Entry'!C12,"") -> 2 | D17: =IF('Data Entry'!D12<>"",'Data Entry'!D12,"") -> 2 | E17: =IF('Data Entry'!E12<>"",'Data Entry'!E12,"") -> 0 | F17: =IF('Data Entry'!F12<>"",'Data Entry'!F12,"") -> 2 | G17: =IF('Data Entry'!H12<>"",'Data Entry'!H12,"") -> 4 | H17: =IF('Data Entry'!I12<>"",'Data Entry'!I12,"") -> 9 | I17: 19 | J17: ='Data Entry'!$J$103 -> 44.55172414
A18: 11 | B18: =IF('Data Entry'!B13<>0,'Data Entry'!B13,"") -> Lowen, Hunter | C18: =IF('Data Entry'!C13<>"",'Data Entry'!C13,"") -> 5 | D18: =IF('Data Entry'!D13<>"",'Data Entry'!D13,"") -> 1 | E18: =IF('Data Entry'!E13<>"",'Data Entry'!E13,"") -> 4 | F18: =IF('Data Entry'!F13<>"",'Data Entry'!F13,"") -> 0 | G18: =IF('Data Entry'!H13<>"",'Data Entry'!H13,"") -> 7 | H18: =IF('Data Entry'!I13<>"",'Data Entry'!I13,"") -> 35 | I18: 52 | J18: ='Data Entry'!$J$103 -> 44.55172414
A19: 12 | B19: =IF('Data Entry'!B14<>0,'Data Entry'!B14,"") -> Marbel, Melody | C19: =IF('Data Entry'!C14<>"",'Data Entry'!C14,"") -> 5 | D19: =IF('Data Entry'!D14<>"",'Data Entry'!D14,"") -> 3 | E19: =IF('Data Entry'!E14<>"",'Data Entry'!E14,"") -> 5 | F19: =IF('Data Entry'!F14<>"",'Data Entry'!F14,"") -> 2 | G19: =IF('Data Entry'!H14<>"",'Data Entry'!H14,"") -> 9 | H19: =IF('Data Entry'!I14<>"",'Data Entry'!I14,"") -> 18 | I19: 42 | J19: ='Data Entry'!$J$103 -> 44.55172414
A20: 13 | B20: =IF('Data Entry'!B15<>0,'Data Entry'!B15,"") -> Peterson, Carmen | C20: =IF('Data Entry'!C15<>"",'Data Entry'!C15,"") -> 3 | D20: =IF('Data Entry'!D15<>"",'Data Entry'!D15,"") -> 1 | E20: =IF('Data Entry'!E15<>"",'Data Entry'!E15,"") -> 0 | F20: =IF('Data Entry'!F15<>"",'Data Entry'!F15,"") -> 0 | G20: =IF('Data Entry'!H15<>"",'Data Entry'!H15,"") -> 4 | H20: =IF('Data Entry'!I15<>"",'Data Entry'!I15,"") -> 9 | I20: 17 | J20: ='Data Entry'!$J$103 -> 44.55172414
A21: 14 | B21: =IF('Data Entry'!B16<>0,'Data Entry'!B16,"") -> Rice, Bruce | C21: =IF('Data Entry'!C16<>"",'Data Entry'!C16,"") -> 2 | D21: =IF('Data Entry'!D16<>"",'Data Entry'!D16,"") -> 1 | E21: =IF('Data Entry'!E16<>"",'Data Entry'!E16,"") -> 0 | F21: =IF('Data Entry'!F16<>"",'Data Entry'!F16,"") -> 0 | G21: =IF('Data Entry'!H16<>"",'Data Entry'!H16,"") -> 8 | H21: =IF('Data Entry'!I16<>"",'Data Entry'!I16,"") -> 33 | I21: 44 | J21: ='Data Entry'!$J$103 -> 44.55172414
A22: 15 | J22: ='Data Entry'!$J$103 -> 44.55172414
A23: 16 | J23: ='Data Entry'!$J$103 -> 44.55172414
A24: 17 | J24: ='Data Entry'!$J$103 -> 44.55172414 | P24: =21-COUNTBLANK(P3:P23) -> 4
A25: 18 | J25: ='Data Entry'!$J$103 -> 44.55172414
A26: 19 | J26: ='Data Entry'!$J$103 -> 44.55172414
A27: 20 | J27: ='Data Entry'!$J$103 -> 44.55172414
A28: 21 | J28: ='Data Entry'!$J$103 -> 44.55172414
I29: ='Data Entry'!$J$103 -> 44.55172414
B30: No. of Highlighted cells | C30: =COUNTIF(C8:C28,"<"&C7) -> 3 | D30: =COUNTIF(D8:D28,"<"&D7) -> 3 | E30: =COUNTIF(E8:E28,"<"&E7) -> 5 | F30: 4 | G30: 1 | H30: 4 | I30: 4
I31: ='Data Entry'!$J$103 -> 44.55172414
B32: % of Ss with Sig. Weaknesses | C32: =C30/14*100 -> 21.42857143 | D32: =D30/14*100 -> 21.42857143 | E32: 35.71428571 | F32: 28.57142857 | G32: =G30/14*100 -> 7.142857143 | H32: =H30/14*100 -> 28.57142857 | I32: =I30/14*100 -> 28.57142857
B34: % Degree of Mastery for all Ss | C34: =100-C32 -> 78.57142857 | D34: =100-D32 -> 78.57142857 | E34: 64.28571429 | F34: 71.42857143 | G34: N/A | H34: =100-H32 -> 71.42857143 | I34: =100-I32 -> 71.42857143
J35: ='Data Entry'!$J$103 -> 44.55172414
J36: ='Data Entry'!$J$103 -> 44.55172414
J37: ='Data Entry'!$J$103 -> 44.55172414

Sheet Class 2
B1: Teacher: | C1: Jessica Bowlby
B2: Grade: | C2: K2G | P2: At-Risk Students
A3: # | C3: Blending Syllables | D3: Segmenting to Syllables | E3: Blending Phonemes | F3: Segmenting to Phonemes | G3: Phonological Memory | H3: Letter Naming Fluency | I3: Grand Total | P3: =IF(I8<$I$7,B8,"") -> 
C5: ='Data Entry'!$C$103 -> 3.701149425 | D5: ='Data Entry'!$D$103 -> 2.540229885 | E5: ='Data Entry'!E103 -> 2.735632184 | F5: ='Data Entry'!F103 -> 1.91954023 | G5: ='Data Entry'!H103 -> 5.586206897 | H5: ='Data Entry'!$I$103 -> 28.06896552 | I5: ='Data Entry'!J103 -> 44.55172414 | J5: Means
B6: Student | C6: ='Data Entry'!$C$104 -> 1.024297179 | D6: ='Data Entry'!$D$104 -> 0.9977252931 | E6: ='Data Entry'!E104 -> 1.243211989 | F6: ='Data Entry'!F104 -> 0.9303461572 | G6: ='Data Entry'!H104 -> 1.944292327 | H6: ='Data Entry'!$I$104 -> 11.76098507 | I6: ='Data Entry'!J104 -> 15.1433143 | J6: Std. Devs. | P6: Demonslayer, Darryl
B7: Names | C7: =C5-C6 -> 2.676852247 | D7: =D5-D6 -> 1.542504592 | E7: =E5-E6 -> 1.492420195 | F7: 0.9891940727 | G7: 3.641914569 | H7: 16.30798045 | I7: =I5-(I6) -> 29.40840984 | J7: Cut-off Scores | P7: Hanson, Sawyer
A8: 1 | B8: =IF('Data Entry'!B17<>0,'Data Entry'!B17,"") -> Broman, Clara | C8: =IF('Data Entry'!C17<>"",'Data Entry'!C17,"") -> 5 | D8: =IF('Data Entry'!D17<>"",'Data Entry'!D17,"") -> 2 | E8: =IF('Data Entry'!E17<>"",'Data Entry'!E17,"") -> 4 | F8: =IF('Data Entry'!F17<>"",'Data Entry'!F17,"") -> 2 | G8: =IF('Data Entry'!H17<>"",'Data Entry'!H17,"") -> 7 | H8: =IF('Data Entry'!I17<>"",'Data Entry'!I17,"") -> 19 | I8: =IF(SUM(C8:H8)<>0,SUM(C8:H8),"") -> 39 | J8: ='Data Entry'!$J$103 -> 44.55172414
A9: 2 | B9: =IF('Data Entry'!B18<>0,'Data Entry'!B18,"") -> Catchy, Danny | C9: =IF('Data Entry'!C18<>"",'Data Entry'!C18,"") -> 5 | D9: =IF('Data Entry'!D18<>"",'Data Entry'!D18,"") -> 3 | E9: =IF('Data Entry'!E18<>"",'Data Entry'!E18,"") -> 5 | F9: =IF('Data Entry'!F18<>"",'Data Entry'!F18,"") -> 2 | G9: =IF('Data Entry'!H18<>"",'Data Entry'!H18,"") -> 4 | H9: =IF('Data Entry'!I18<>"",'Data Entry'!I18,"") -> 33 | I9: =IF(SUM(C9:H9)<>0,SUM(C9:H9),"") -> 52 | J9: ='Data Entry'!$J$103 -> 44.55172414
A10: 3 | B10: =IF('Data Entry'!B19<>0,'Data Entry'!B19,"") -> Cayburn, Karl | C10: =IF('Data Entry'!C19<>"",'Data Entry'!C19,"") -> 4 | D10: =IF('Data Entry'!D19<>"",'Data Entry'!D19,"") -> 3 | E10: =IF('Data Entry'!E19<>"",'Data Entry'!E19,"") -> 4 | F10: =IF('Data Entry'!F19<>"",'Data Entry'!F19,"") -> 3 | G10: =IF('Data Entry'!H19<>"",'Data Entry'!H19,"") -> 7 | H10: =IF('Data Entry'!I19<>"",'Data Entry'!I19,"") -> 36 | I10: =IF(SUM(C10:H10)<>0,SUM(C10:H10),"") -> 57 | J10: ='Data Entry'!$J$103 -> 44.55172414
A11: 4 | B11: =IF('Data Entry'!B20<>0,'Data Entry'!B20,"") -> Demonslayer, Darryl | C11: =IF('Data Entry'!C20<>"",'Data Entry'!C20,"") -> 3 | D11: =IF('Data Entry'!D20<>"",'Data Entry'!D20,"") -> 2 | E11: =IF('Data Entry'!E20<>"",'Data Entry'!E20,"") -> 1 | F11: =IF('Data Entry'!F20<>"",'Data Entry'!F20,"") -> 0 | G11: =IF('Data Entry'!H20<>"",'Data Entry'!H20,"") -> 6 | H11: =IF('Data Entry'!I20<>"",'Data Entry'!I20,"") -> 10 | I11: 22 | J11: ='Data Entry'!$J$103 -> 44.55172414 | P11: Lagensky, Patty
A12: 5 | B12: =IF('Data Entry'!B21<>0,'Data Entry'!B21,"") -> Hanson, Sawyer | C12: =IF('Data Entry'!C21<>"",'Data Entry'!C21,"") -> 3 | D12: =IF('Data Entry'!D21<>"",'Data Entry'!D21,"") -> 1 | E12: =IF('Data Entry'!E21<>"",'Data Entry'!E21,"") -> 2 | F12: =IF('Data Entry'!F21<>"",'Data Entry'!F21,"") -> 0 | G12: =IF('Data Entry'!H21<>"",'Data Entry'!H21,"") -> 3 | H12: =IF('Data Entry'!I21<>"",'Data Entry'!I21,"") -> 11 | I12: 20 | J12: ='Data Entry'!$J$103 -> 44.55172414 | P12: Lorrey, Fred
A13: 6 | B13: =IF('Data Entry'!B22<>0,'Data Entry'!B22,"") -> Hiebert, Bruce | C13: =IF('Data Entry'!C22<>"",'Data Entry'!C22,"") -> 5 | D13: =IF('Data Entry'!D22<>"",'Data Entry'!D22,"") -> 3 | E13: =IF('Data Entry'!E22<>"",'Data Entry'!E22,"") -> 5 | F13: =IF('Data Entry'!F22<>"",'Data Entry'!F22,"") -> 3 | G13: =IF('Data Entry'!H22<>"",'Data Entry'!H22,"") -> 5 | H13: =IF('Data Entry'!I22<>"",'Data Entry'!I22,"") -> 48 | I13: 69 | J13: ='Data Entry'!$J$103 -> 44.55172414
A14: 7 | B14: =IF('Data Entry'!B23<>0,'Data Entry'!B23,"") -> Heidelburg, Corby | C14: =IF('Data Entry'!C23<>"",'Data Entry'!C23,"") -> 3 | D14: =IF('Data Entry'!D23<>"",'Data Entry'!D23,"") -> 3 | E14: =IF('Data Entry'!E23<>"",'Data Entry'!E23,"") -> 2 | F14: =IF('Data Entry'!F23<>"",'Data Entry'!F23,"") -> 3 | G14: =IF('Data Entry'!H23<>"",'Data Entry'!H23,"") -> 7 | H14: =IF('Data Entry'!I23<>"",'Data Entry'!I23,"") -> 37 | I14: 55 | J14: ='Data Entry'!$J$103 -> 44.55172414
A15: 8 | B15: =IF('Data Entry'!B24<>0,'Data Entry'!B24,"") -> Krinkle, Luke | C15: =IF('Data Entry'!C24<>"",'Data Entry'!C24,"") -> 2 | D15: =IF('Data Entry'!D24<>"",'Data Entry'!D24,"") -> 2 | E15: =IF('Data Entry'!E24<>"",'Data Entry'!E24,"") -> 2 | F15: =IF('Data Entry'!F24<>"",'Data Entry'!F24,"") -> 1 | G15: =IF('Data Entry'!H24<>"",'Data Entry'!H24,"") -> 4 | H15: =IF('Data Entry'!I24<>"",'Data Entry'!I24,"") -> 23 | I15: 34 | J15: ='Data Entry'!$J$103 -> 44.55172414 | P15: Ohera, Marian
A16: 9 | B16: =IF('Data Entry'!B25<>0,'Data Entry'!B25,"") -> Lagensky, Patty | C16: =IF('Data Entry'!C25<>"",'Data Entry'!C25,"") -> 3 | D16: =IF('Data Entry'!D25<>"",'Data Entry'!D25,"") -> 0 | E16: =IF('Data Entry'!E25<>"",'Data Entry'!E25,"") -> 1 | F16: =IF('Data Entry'!F25<>"",'Data Entry'!F25,"") -> 1 | G16: =IF('Data Entry'!H25<>"",'Data Entry'!H25,"") -> 3 | H16: =IF('Data Entry'!I25<>"",'Data Entry'!I25,"") -> 12 | I16: 20 | J16: ='Data Entry'!$J$103 -> 44.55172414
A17: 10 | B17: =IF('Data Entry'!B26<>0,'Data Entry'!B26,"") -> Lorrey, Fred | C17: =IF('Data Entry'!C26<>"",'Data Entry'!C26,"") -> 4 | D17: =IF('Data Entry'!D26<>"",'Data Entry'!D26,"") -> 1 | E17: =IF('Data Entry'!E26<>"",'Data Entry'!E26,"") -> 1 | F17: =IF('Data Entry'!F26<>"",'Data Entry'!F26,"") -> 2 | G17: =IF('Data Entry'!H26<>"",'Data Entry'!H26,"") -> 5 | H17: =IF('Data Entry'!I26<>"",'Data Entry'!I26,"") -> 14 | I17: 27 | J17: ='Data Entry'!$J$103 -> 44.55172414 | P17: Sarbucker, Cassedy
A18: 11 | B18: =IF('Data Entry'!B27<>0,'Data Entry'!B27,"") -> Marvel, Captain | C18: =IF('Data Entry'!C27<>"",'Data Entry'!C27,"") -> 3 | D18: =IF('Data Entry'!D27<>"",'Data Entry'!D27,"") -> 2 | E18: =IF('Data Entry'!E27<>"",'Data Entry'!E27,"") -> 2 | F18: =IF('Data Entry'!F27<>"",'Data Entry'!F27,"") -> 2 | G18: =IF('Data Entry'!H27<>"",'Data Entry'!H27,"") -> 4 | H18: =IF('Data Entry'!I27<>"",'Data Entry'!I27,"") -> 24 | I18: 37 | J18: ='Data Entry'!$J$103 -> 44.55172414
A19: 12 | B19: =IF('Data Entry'!B28<>0,'Data Entry'!B28,"") -> Manswella, Rico | C19: =IF('Data Entry'!C28<>"",'Data Entry'!C28,"") -> 3 | D19: =IF('Data Entry'!D28<>"",'Data Entry'!D28,"") -> 2 | E19: =IF('Data Entry'!E28<>"",'Data Entry'!E28,"") -> 3 | F19: =IF('Data Entry'!F28<>"",'Data Entry'!F28,"") -> 1 | G19: =IF('Data Entry'!H28<>"",'Data Entry'!H28,"") -> 7 | H19: =IF('Data Entry'!I28<>"",'Data Entry'!I28,"") -> 34 | I19: 50 | J19: ='Data Entry'!$J$103 -> 44.55172414 | P19: Skaper, Leah
A20: 13 | B20: =IF('Data Entry'!B29<>0,'Data Entry'!B29,"") -> Ohera, Marian | C20: =IF('Data Entry'!C29<>"",'Data Entry'!C29,"") -> 2 | D20: =IF('Data Entry'!D29<>"",'Data Entry'!D29,"") -> 3 | E20: =IF('Data Entry'!E29<>"",'Data Entry'!E29,"") -> 2 | F20: =IF('Data Entry'!F29<>"",'Data Entry'!F29,"") -> 2 | G20: =IF('Data Entry'!H29<>"",'Data Entry'!H29,"") -> 6 | H20: =IF('Data Entry'!I29<>"",'Data Entry'!I29,"") -> 12 | I20: 27 | J20: ='Data Entry'!$J$103 -> 44.55172414 | P20: Shneider, Ingrid
A21: 14 | B21: =IF('Data Entry'!B30<>0,'Data Entry'!B30,"") -> Penner, Annie | C21: =IF('Data Entry'!C30<>"",'Data Entry'!C30,"") -> 3 | D21: =IF('Data Entry'!D30<>"",'Data Entry'!D30,"") -> 2 | E21: =IF('Data Entry'!E30<>"",'Data Entry'!E30,"") -> 2 | F21: =IF('Data Entry'!F30<>"",'Data Entry'!F30,"") -> 2 | G21: =IF('Data Entry'!H30<>"",'Data Entry'!H30,"") -> 8 | H21: =IF('Data Entry'!I30<>"",'Data Entry'!I30,"") -> 23 | I21: 40 | J21: ='Data Entry'!$J$103 -> 44.55172414
A22: 15 | B22: =IF('Data Entry'!B31<>0,'Data Entry'!B31,"") -> Sarbucker, Cassedy | C22: =IF('Data Entry'!C31<>"",'Data Entry'!C31,"") -> 4 | D22: =IF('Data Entry'!D31<>"",'Data Entry'!D31,"") -> 1 | E22: =IF('Data Entry'!E31<>"",'Data Entry'!E31,"") -> 1 | F22: =IF('Data Entry'!F31<>"",'Data Entry'!F31,"") -> 3 | G22: =IF('Data Entry'!H31<>"",'Data Entry'!H31,"") -> 5 | H22: =IF('Data Entry'!I31<>"",'Data Entry'!I31,"") -> 12 | I22: 26 | J22: ='Data Entry'!$J$103 -> 44.55172414
A23: 16 | B23: =IF('Data Entry'!B32<>0,'Data Entry'!B32,"") -> Schell, John | C23: =IF('Data Entry'!C32<>"",'Data Entry'!C32,"") -> 4 | D23: =IF('Data Entry'!D32<>"",'Data Entry'!D32,"") -> 2 | E23: =IF('Data Entry'!E32<>"",'Data Entry'!E32,"") -> 2 | F23: =IF('Data Entry'!F32<>"",'Data Entry'!F32,"") -> 2 | G23: =IF('Data Entry'!H32<>"",'Data Entry'!H32,"") -> 6 | H23: =IF('Data Entry'!I32<>"",'Data Entry'!I32,"") -> 23 | I23: 39 | J23: ='Data Entry'!$J$103 -> 44.55172414
A24: 17 | B24: =IF('Data Entry'!B33<>0,'Data Entry'!B33,"") -> Skaper, Leah | C24: =IF('Data Entry'!C33<>"",'Data Entry'!C33,"") -> 3 | D24: =IF('Data Entry'!D33<>"",'Data Entry'!D33,"") -> 3 | E24: =IF('Data Entry'!E33<>"",'Data Entry'!E33,"") -> 2 | F24: =IF('Data Entry'!F33<>"",'Data Entry'!F33,"") -> 1 | G24: =IF('Data Entry'!H33<>"",'Data Entry'!H33,"") -> 4 | H24: =IF('Data Entry'!I33<>"",'Data Entry'!I33,"") -> 11 | I24: 24 | J24: ='Data Entry'!$J$103 -> 44.55172414 | P24: =21-COUNTBLANK(P3:P23) -> 8
A25: 18 | B25: =IF('Data Entry'!B34<>0,'Data Entry'!B34,"") -> Shneider, Ingrid | C25: =IF('Data Entry'!C34<>"",'Data Entry'!C34,"") -> 5 | D25: =IF('Data Entry'!D34<>"",'Data Entry'!D34,"") -> 2 | E25: =IF('Data Entry'!E34<>"",'Data Entry'!E34,"") -> 3 | F25: =IF('Data Entry'!F34<>"",'Data Entry'!F34,"") -> 2 | G25: =IF('Data Entry'!H34<>"",'Data Entry'!H34,"") -> 5 | H25: =IF('Data Entry'!I34<>"",'Data Entry'!I34,"") -> 10 | I25: 27 | J25: ='Data Entry'!$J$103 -> 44.55172414
A26: 19 | B26: =IF('Data Entry'!B35<>0,'Data Entry'!B35,"") -> klywalker, Eric | C26: =IF('Data Entry'!C35<>"",'Data Entry'!C35,"") -> 4 | D26: =IF('Data Entry'!D35<>"",'Data Entry'!D35,"") -> 4 | E26: =IF('Data Entry'!E35<>"",'Data Entry'!E35,"") -> 4 | F26: =IF('Data Entry'!F35<>"",'Data Entry'!F35,"") -> 3 | G26: =IF('Data Entry'!H35<>"",'Data Entry'!H35,"") -> 6 | H26: =IF('Data Entry'!I35<>"",'Data Entry'!I35,"") -> 22 | I26: 43 | J26: ='Data Entry'!$J$103 -> 44.55172414
A27: 20 | B27: =IF('Data Entry'!B36<>0,'Data Entry'!B36,"") -> Voit, John | C27: =IF('Data Entry'!C36<>"",'Data Entry'!C36,"") -> 3 | D27: =IF('Data Entry'!D36<>"",'Data Entry'!D36,"") -> 3 | E27: =IF('Data Entry'!E36<>"",'Data Entry'!E36,"") -> 3 | F27: =IF('Data Entry'!F36<>"",'Data Entry'!F36,"") -> 3 | G27: =IF('Data Entry'!H36<>"",'Data Entry'!H36,"") -> 3 | H27: =IF('Data Entry'!I36<>"",'Data Entry'!I36,"") -> 32 | I27: 47 | J27: ='Data Entry'!$J$103 -> 44.55172414
A28: 21 | J28: ='Data Entry'!$J$103 -> 44.55172414
I29: ='Data Entry'!$J$103 -> 44.55172414
B30: No. of Highlighted cells | C30: =COUNTIF(C8:C28,"<"&C7) -> 2 | D30: =COUNTIF(D8:D28,"<"&D7) -> 4 | E30: 4 | F30: 2 | G30: 3 | H30: 8 | I30: 8
I31: ='Data Entry'!$J$103 -> 44.55172414
B32: % of Ss with Sig. Weaknesses | C32: =C30/14*100 -> 14.28571429 | D32: =D30/14*100 -> 28.57142857 | E32: 28.57142857 | F32: 14.28571429 | G32: =G30/14*100 -> 21.42857143 | H32: =H30/14*100 -> 57.14285714 | I32: =I30/14*100 -> 57.14285714
B34: % Degree of Mastery for all Ss | C34: =100-C32 -> 85.71428571 | D34: =100-D32 -> 71.42857143 | E34: 71.42857143 | F34: 85.71428571 | G34: N/A | H34: =100-H32 -> 42.85714286 | I34: =100-I32 -> 42.85714286
J35: ='Data Entry'!$J$103 -> 44.55172414
J36: ='Data Entry'!$J$103 -> 44.55172414
J37: ='Data Entry'!$J$103 -> 44.55172414

Sheet Class 3
B1: Teacher: | C1: Sheri Meyer
B2: Grade: | C2: K3B | P2: At-Risk Students
A3: # | C3: Blending Syllables | D3: Segmenting to Syllables | E3: Blending Phonemes | F3: Segmenting to Phonemes | G3: Phonological Memory | H3: Letter Naming Fluency | I3: Grand Total | P3: =IF(I8<$I$7,B8,"") -> 
P4: Dorito, Danny
C5: ='Data Entry'!$C$103 -> 3.701149425 | D5: ='Data Entry'!$D$103 -> 2.540229885 | E5: ='Data Entry'!E103 -> 2.735632184 | F5: ='Data Entry'!F103 -> 1.91954023 | G5: ='Data Entry'!H103 -> 5.586206897 | H5: ='Data Entry'!$I$103 -> 28.06896552 | I5: ='Data Entry'!J103 -> 44.55172414 | J5: Means
B6: Student | C6: ='Data Entry'!$C$104 -> 1.024297179 | D6: ='Data Entry'!$D$104 -> 0.9977252931 | E6: ='Data Entry'!E104 -> 1.243211989 | F6: ='Data Entry'!F104 -> 0.9303461572 | G6: ='Data Entry'!H104 -> 1.944292327 | H6: ='Data Entry'!$I$104 -> 11.76098507 | I6: ='Data Entry'!J104 -> 15.1433143 | J6: Std. Devs.
B7: Names | C7: =C5-C6 -> 2.676852247 | D7: =D5-D6 -> 1.542504592 | E7: =E5-E6 -> 1.492420195 | F7: 0.9891940727 | G7: 3.641914569 | H7: 16.30798045 | I7: =I5-(I6) -> 29.40840984 | J7: Cut-off Scores
A8: 1 | B8: =IF('Data Entry'!B37<>0,'Data Entry'!B37,"") -> Benito, Ester | C8: =IF('Data Entry'!C37<>"",'Data Entry'!C37,"") -> 5 | D8: =IF('Data Entry'!D37<>"",'Data Entry'!D37,"") -> 2 | E8: =IF('Data Entry'!E37<>"",'Data Entry'!E37,"") -> 3 | F8: =IF('Data Entry'!F37<>"",'Data Entry'!F37,"") -> 2 | G8: =IF('Data Entry'!H37<>"",'Data Entry'!H37,"") -> 6 | H8: =IF('Data Entry'!I37<>"",'Data Entry'!I37,"") -> 19 | I8: =IF(SUM(C8:H8)<>0,SUM(C8:H8),"") -> 37 | J8: ='Data Entry'!$J$103 -> 44.55172414
A9: 2 | B9: =IF('Data Entry'!B38<>0,'Data Entry'!B38,"") -> Dorito, Danny | C9: =IF('Data Entry'!C38<>"",'Data Entry'!C38,"") -> 2 | D9: =IF('Data Entry'!D38<>"",'Data Entry'!D38,"") -> 3 | E9: =IF('Data Entry'!E38<>"",'Data Entry'!E38,"") -> 2 | F9: =IF('Data Entry'!F38<>"",'Data Entry'!F38,"") -> 2 | G9: =IF('Data Entry'!H38<>"",'Data Entry'!H38,"") -> 3 | H9: =IF('Data Entry'!I38<>"",'Data Entry'!I38,"") -> 10 | I9: =IF(SUM(C9:H9)<>0,SUM(C9:H9),"") -> 22 | J9: ='Data Entry'!$J$103 -> 44.55172414
A10: 3 | B10: =IF('Data Entry'!B39<>0,'Data Entry'!B39,"") -> Friesen, Elaine | C10: =IF('Data Entry'!C39<>"",'Data Entry'!C39,"") -> 4 | D10: =IF('Data Entry'!D39<>"",'Data Entry'!D39,"") -> 3 | E10: =IF('Data Entry'!E39<>"",'Data Entry'!E39,"") -> 3 | F10: =IF('Data Entry'!F39<>"",'Data Entry'!F39,"") -> 3 | G10: =IF('Data Entry'!H39<>"",'Data Entry'!H39,"") -> 8 | H10: =IF('Data Entry'!I39<>"",'Data Entry'!I39,"") -> 38 | I10: =IF(SUM(C10:H10)<>0,SUM(C10:H10),"") -> 59 | J10: ='Data Entry'!$J$103 -> 44.55172414
A11: 4 | B11: =IF('Data Entry'!B40<>0,'Data Entry'!B40,"") -> Fronk, Clara | C11: =IF('Data Entry'!C40<>"",'Data Entry'!C40,"") -> 2 | D11: =IF('Data Entry'!D40<>"",'Data Entry'!D40,"") -> 3 | E11: =IF('Data Entry'!E40<>"",'Data Entry'!E40,"") -> 3 | F11: =IF('Data Entry'!F40<>"",'Data Entry'!F40,"") -> 2 | G11: =IF('Data Entry'!H40<>"",'Data Entry'!H40,"") -> 4 | H11: =IF('Data Entry'!I40<>"",'Data Entry'!I40,"") -> 45 | I11: 59 | J11: ='Data Entry'!$J$103 -> 44.55172414
A12: 5 | B12: =IF('Data Entry'!B41<>0,'Data Entry'!B41,"") -> Gillingham, Teddy | C12: =IF('Data Entry'!C41<>"",'Data Entry'!C41,"") -> 5 | D12: =IF('Data Entry'!D41<>"",'Data Entry'!D41,"") -> 4 | E12: =IF('Data Entry'!E41<>"",'Data Entry'!E41,"") -> 3 | F12: =IF('Data Entry'!F41<>"",'Data Entry'!F41,"") -> 2 | G12: =IF('Data Entry'!H41<>"",'Data Entry'!H41,"") -> 3 | H12: =IF('Data Entry'!I41<>"",'Data Entry'!I41,"") -> 23 | I12: 40 | J12: ='Data Entry'!$J$103 -> 44.55172414
A13: 6 | B13: =IF('Data Entry'!B42<>0,'Data Entry'!B42,"") -> Harder, Hellen | C13: =IF('Data Entry'!C42<>"",'Data Entry'!C42,"") -> 4 | D13: =IF('Data Entry'!D42<>"",'Data Entry'!D42,"") -> 2 | E13: =IF('Data Entry'!E42<>"",'Data Entry'!E42,"") -> 3 | F13: =IF('Data Entry'!F42<>"",'Data Entry'!F42,"") -> 2 | G13: =IF('Data Entry'!H42<>"",'Data Entry'!H42,"") -> 3 | H13: =IF('Data Entry'!I42<>"",'Data Entry'!I42,"") -> 44 | I13: 58 | J13: ='Data Entry'!$J$103 -> 44.55172414
A14: 7 | B14: =IF('Data Entry'!B43<>0,'Data Entry'!B43,"") -> Heinrichs, Audrey | C14: =IF('Data Entry'!C43<>"",'Data Entry'!C43,"") -> 4 | D14: =IF('Data Entry'!D43<>"",'Data Entry'!D43,"") -> 3 | E14: =IF('Data Entry'!E43<>"",'Data Entry'!E43,"") -> 2 | F14: =IF('Data Entry'!F43<>"",'Data Entry'!F43,"") -> 1 | G14: =IF('Data Entry'!H43<>"",'Data Entry'!H43,"") -> 4 | H14: =IF('Data Entry'!I43<>"",'Data Entry'!I43,"") -> 35 | I14: 49 | J14: ='Data Entry'!$J$103 -> 44.55172414
A15: 8 | B15: =IF('Data Entry'!B44<>0,'Data Entry'!B44,"") -> Hofmann, Joan | C15: =IF('Data Entry'!C44<>"",'Data Entry'!C44,"") -> 4 | D15: =IF('Data Entry'!D44<>"",'Data Entry'!D44,"") -> 4 | E15: =IF('Data Entry'!E44<>"",'Data Entry'!E44,"") -> 4 | F15: =IF('Data Entry'!F44<>"",'Data Entry'!F44,"") -> 1 | G15: =IF('Data Entry'!H44<>"",'Data Entry'!H44,"") -> 8 | H15: =IF('Data Entry'!I44<>"",'Data Entry'!I44,"") -> 48 | I15: 69 | J15: ='Data Entry'!$J$103 -> 44.55172414
A16: 9 | B16: =IF('Data Entry'!B45<>0,'Data Entry'!B45,"") -> Klippenstein, Joey | C16: =IF('Data Entry'!C45<>"",'Data Entry'!C45,"") -> 3 | D16: =IF('Data Entry'!D45<>"",'Data Entry'!D45,"") -> 3 | E16: =IF('Data Entry'!E45<>"",'Data Entry'!E45,"") -> 4 | F16: =IF('Data Entry'!F45<>"",'Data Entry'!F45,"") -> 2 | G16: =IF('Data Entry'!H45<>"",'Data Entry'!H45,"") -> 7 | H16: =IF('Data Entry'!I45<>"",'Data Entry'!I45,"") -> 35 | I16: 54 | J16: ='Data Entry'!$J$103 -> 44.55172414
A17: 10 | B17: =IF('Data Entry'!B46<>0,'Data Entry'!B46,"") -> Kolair, Henry | C17: =IF('Data Entry'!C46<>"",'Data Entry'!C46,"") -> 5 | D17: =IF('Data Entry'!D46<>"",'Data Entry'!D46,"") -> 3 | E17: =IF('Data Entry'!E46<>"",'Data Entry'!E46,"") -> 5 | F17: =IF('Data Entry'!F46<>"",'Data Entry'!F46,"") -> 2 | G17: =IF('Data Entry'!H46<>"",'Data Entry'!H46,"") -> 8 | H17: =IF('Data Entry'!I46<>"",'Data Entry'!I46,"") -> 42 | I17: 65 | J17: ='Data Entry'!$J$103 -> 44.55172414
A18: 11 | B18: =IF('Data Entry'!B47<>0,'Data Entry'!B47,"") -> Marquette, Ryan | C18: =IF('Data Entry'!C47<>"",'Data Entry'!C47,"") -> 5 | D18: =IF('Data Entry'!D47<>"",'Data Entry'!D47,"") -> 3 | E18: =IF('Data Entry'!E47<>"",'Data Entry'!E47,"") -> 3 | F18: =IF('Data Entry'!F47<>"",'Data Entry'!F47,"") -> 2 | G18: =IF('Data Entry'!H47<>"",'Data Entry'!H47,"") -> 7 | H18: =IF('Data Entry'!I47<>"",'Data Entry'!I47,"") -> 41 | I18: 61 | J18: ='Data Entry'!$J$103 -> 44.55172414
A19: 12 | B19: =IF('Data Entry'!B48<>0,'Data Entry'!B48,"") -> Martin, Katie | C19: =IF('Data Entry'!C48<>"",'Data Entry'!C48,"") -> 4 | D19: =IF('Data Entry'!D48<>"",'Data Entry'!D48,"") -> 4 | E19: =IF('Data Entry'!E48<>"",'Data Entry'!E48,"") -> 4 | F19: =IF('Data Entry'!F48<>"",'Data Entry'!F48,"") -> 3 | G19: =IF('Data Entry'!H48<>"",'Data Entry'!H48,"") -> 8 | H19: =IF('Data Entry'!I48<>"",'Data Entry'!I48,"") -> 47 | I19: 70 | J19: ='Data Entry'!$J$103 -> 44.55172414
A20: 13 | B20: =IF('Data Entry'!B49<>0,'Data Entry'!B49,"") -> Mutch, Jayden | C20: =IF('Data Entry'!C49<>"",'Data Entry'!C49,"") -> 3 | D20: =IF('Data Entry'!D49<>"",'Data Entry'!D49,"") -> 2 | E20: =IF('Data Entry'!E49<>"",'Data Entry'!E49,"") -> 2 | F20: =IF('Data Entry'!F49<>"",'Data Entry'!F49,"") -> 2 | G20: =IF('Data Entry'!H49<>"",'Data Entry'!H49,"") -> 6 | H20: =IF('Data Entry'!I49<>"",'Data Entry'!I49,"") -> 32 | I20: 47 | J20: ='Data Entry'!$J$103 -> 44.55172414
A21: 14 | B21: =IF('Data Entry'!B50<>0,'Data Entry'!B50,"") -> Penner, Robert | C21: =IF('Data Entry'!C50<>"",'Data Entry'!C50,"") -> 4 | D21: =IF('Data Entry'!D50<>"",'Data Entry'!D50,"") -> 2 | E21: =IF('Data Entry'!E50<>"",'Data Entry'!E50,"") -> 3 | F21: =IF('Data Entry'!F50<>"",'Data Entry'!F50,"") -> 3 | G21: =IF('Data Entry'!H50<>"",'Data Entry'!H50,"") -> 7 | H21: =IF('Data Entry'!I50<>"",'Data Entry'!I50,"") -> 39 | I21: 58 | J21: ='Data Entry'!$J$103 -> 44.55172414
A22: 15 | B22: =IF('Data Entry'!B51<>0,'Data Entry'!B51,"") -> Schultz, Mario | C22: =IF('Data Entry'!C51<>"",'Data Entry'!C51,"") -> 2 | D22: =IF('Data Entry'!D51<>"",'Data Entry'!D51,"") -> 1 | E22: =IF('Data Entry'!E51<>"",'Data Entry'!E51,"") -> 3 | F22: =IF('Data Entry'!F51<>"",'Data Entry'!F51,"") -> 3 | G22: =IF('Data Entry'!H51<>"",'Data Entry'!H51,"") -> 5 | H22: =IF('Data Entry'!I51<>"",'Data Entry'!I51,"") -> 33 | I22: 47 | J22: ='Data Entry'!$J$103 -> 44.55172414
A23: 16 | B23: =IF('Data Entry'!B52<>0,'Data Entry'!B52,"") -> Smith, Abby | C23: =IF('Data Entry'!C52<>"",'Data Entry'!C52,"") -> 4 | D23: =IF('Data Entry'!D52<>"",'Data Entry'!D52,"") -> 3 | E23: =IF('Data Entry'!E52<>"",'Data Entry'!E52,"") -> 4 | F23: =IF('Data Entry'!F52<>"",'Data Entry'!F52,"") -> 2 | G23: =IF('Data Entry'!H52<>"",'Data Entry'!H52,"") -> 5 | H23: =IF('Data Entry'!I52<>"",'Data Entry'!I52,"") -> 37 | I23: 55 | J23: ='Data Entry'!$J$103 -> 44.55172414
A24: 17 | B24: =IF('Data Entry'!B53<>0,'Data Entry'!B53,"") -> Vogt, Adelle | C24: =IF('Data Entry'!C53<>"",'Data Entry'!C53,"") -> 4 | D24: =IF('Data Entry'!D53<>"",'Data Entry'!D53,"") -> 2 | E24: =IF('Data Entry'!E53<>"",'Data Entry'!E53,"") -> 4 | F24: =IF('Data Entry'!F53<>"",'Data Entry'!F53,"") -> 3 | G24: =IF('Data Entry'!H53<>"",'Data Entry'!H53,"") -> 7 | H24: =IF('Data Entry'!I53<>"",'Data Entry'!I53,"") -> 42 | I24: 62 | J24: ='Data Entry'!$J$103 -> 44.55172414 | P24: =21-COUNTBLANK(P3:P23) -> 1
A25: 18 | B25: =IF('Data Entry'!B54<>0,'Data Entry'!B54,"") -> Zilberman, Toni | C25: =IF('Data Entry'!C54<>"",'Data Entry'!C54,"") -> 3 | D25: =IF('Data Entry'!D54<>"",'Data Entry'!D54,"") -> 3 | E25: =IF('Data Entry'!E54<>"",'Data Entry'!E54,"") -> 5 | F25: =IF('Data Entry'!F54<>"",'Data Entry'!F54,"") -> 2 | G25: =IF('Data Entry'!H54<>"",'Data Entry'!H54,"") -> 6 | H25: =IF('Data Entry'!I54<>"",'Data Entry'!I54,"") -> 23 | I25: 42 | J25: ='Data Entry'!$J$103 -> 44.55172414
A26: 19 | J26: ='Data Entry'!$J$103 -> 44.55172414
A27: 20 | J27: ='Data Entry'!$J$103 -> 44.55172414
A28: 21 | J28: ='Data Entry'!$J$103 -> 44.55172414
I29: ='Data Entry'!$J$103 -> 44.55172414
B30: No. of Highlighted cells | C30: =COUNTIF(C8:C28,"<"&C7) -> 3 | D30: =COUNTIF(D8:D28,"<"&D7) -> 1 | E30: 0 | F30: 0 | G30: 3 | H30: 1 | I30: 1
I31: ='Data Entry'!$J$103 -> 44.55172414
B32: % of Ss with Sig. Weaknesses | C32: =C30/14*100 -> 21.42857143 | D32: =D30/14*100 -> 7.142857143 | E32: 0 | F32: 0 | G32: =G30/14*100 -> 21.42857143 | H32: =H30/14*100 -> 7.142857143 | I32: =I30/14*100 -> 7.142857143
B34: % Degree of Mastery for all Ss | C34: =100-C32 -> 78.57142857 | D34: =100-D32 -> 92.85714286 | E34: 100 | F34: 100 | G34: N/A | H34: =100-H32 -> 92.85714286 | I34: =100-I32 -> 92.85714286
J35: ='Data Entry'!$J$103 -> 44.55172414
J36: ='Data Entry'!$J$103 -> 44.55172414
J37: ='Data Entry'!$J$103 -> 44.55172414

Sheet Class 4
B1: Teacher: | C1: Linda Kossman
B2: Grade: | C2: K4C | P2: At-Risk Students
A3: # | C3: Blending Syllables | D3: Segmenting to Syllables | E3: Blending Phonemes | F3: Segmenting to Phonemes | G3: Phonological Memory | H3: Letter Naming Fluency | I3: Grand Total | P3: =IF(I8<$I$7,B8,"") -> 
C5: ='Data Entry'!$C$103 -> 3.701149425 | D5: ='Data Entry'!$D$103 -> 2.540229885 | E5: ='Data Entry'!E103 -> 2.735632184 | F5: ='Data Entry'!F103 -> 1.91954023 | G5: ='Data Entry'!H103 -> 5.586206897 | H5: ='Data Entry'!$I$103 -> 28.06896552 | I5: ='Data Entry'!J103 -> 44.55172414 | J5: Means | P5: Bugeate, Moreen
B6: Student | C6: ='Data Entry'!$C$104 -> 1.024297179 | D6: ='Data Entry'!$D$104 -> 0.9977252931 | E6: ='Data Entry'!E104 -> 1.243211989 | F6: ='Data Entry'!F104 -> 0.9303461572 | G6: ='Data Entry'!H104 -> 1.944292327 | H6: ='Data Entry'!$I$104 -> 11.76098507 | I6: ='Data Entry'!J104 -> 15.1433143 | J6: Std. Devs.
B7: Names | C7: =C5-C6 -> 2.676852247 | D7: =D5-D6 -> 1.542504592 | E7: =E5-E6 -> 1.492420195 | F7: 0.9891940727 | G7: 3.641914569 | H7: 16.30798045 | I7: =I5-(I6) -> 29.40840984 | J7: Cut-off Scores
A8: 1 | B8: =IF('Data Entry'!B55<>0,'Data Entry'!B55,"") -> Ardene, Mary | C8: =IF('Data Entry'!C55<>"",'Data Entry'!C55,"") -> 4 | D8: =IF('Data Entry'!D55<>"",'Data Entry'!D55,"") -> 2 | E8: =IF('Data Entry'!E55<>"",'Data Entry'!E55,"") -> 4 | F8: =IF('Data Entry'!F55<>"",'Data Entry'!F55,"") -> 2 | G8: =IF('Data Entry'!H55<>"",'Data Entry'!H55,"") -> 6 | H8: =IF('Data Entry'!I55<>"",'Data Entry'!I55,"") -> 35 | I8: =IF(SUM(C8:H8)<>0,SUM(C8:H8),"") -> 53 | J8: ='Data Entry'!$J$103 -> 44.55172414
A9: 2 | B9: =IF('Data Entry'!B56<>0,'Data Entry'!B56,"") -> Brother, Peter | C9: =IF('Data Entry'!C56<>"",'Data Entry'!C56,"") -> 5 | D9: =IF('Data Entry'!D56<>"",'Data Entry'!D56,"") -> 3 | E9: =IF('Data Entry'!E56<>"",'Data Entry'!E56,"") -> 5 | F9: =IF('Data Entry'!F56<>"",'Data Entry'!F56,"") -> 2 | G9: =IF('Data Entry'!H56<>"",'Data Entry'!H56,"") -> 8 | H9: =IF('Data Entry'!I56<>"",'Data Entry'!I56,"") -> 39 | I9: =IF(SUM(C9:H9)<>0,SUM(C9:H9),"") -> 62 | J9: ='Data Entry'!$J$103 -> 44.55172414
A10: 3 | B10: =IF('Data Entry'!B57<>0,'Data Entry'!B57,"") -> Bugeate, Moreen | C10: =IF('Data Entry'!C57<>"",'Data Entry'!C57,"") -> 2 | D10: =IF('Data Entry'!D57<>"",'Data Entry'!D57,"") -> 1 | E10: =IF('Data Entry'!E57<>"",'Data Entry'!E57,"") -> 2 | F10: =IF('Data Entry'!F57<>"",'Data Entry'!F57,"") -> 1 | G10: =IF('Data Entry'!H57<>"",'Data Entry'!H57,"") -> 2 | H10: =IF('Data Entry'!I57<>"",'Data Entry'!I57,"") -> 12 | I10: =IF(SUM(C10:H10)<>0,SUM(C10:H10),"") -> 20 | J10: ='Data Entry'!$J$103 -> 44.55172414
A11: 4 | B11: =IF('Data Entry'!B58<>0,'Data Entry'!B58,"") -> Candy, William | C11: =IF('Data Entry'!C58<>"",'Data Entry'!C58,"") -> 4 | D11: =IF('Data Entry'!D58<>"",'Data Entry'!D58,"") -> 2 | E11: =IF('Data Entry'!E58<>"",'Data Entry'!E58,"") -> 2 | F11: =IF('Data Entry'!F58<>"",'Data Entry'!F58,"") -> 2 | G11: =IF('Data Entry'!H58<>"",'Data Entry'!H58,"") -> 5 | H11: =IF('Data Entry'!I58<>"",'Data Entry'!I58,"") -> 34 | I11: 49 | J11: ='Data Entry'!$J$103 -> 44.55172414
A12: 5 | B12: =IF('Data Entry'!B59<>0,'Data Entry'!B59,"") -> Dyck, Teddy | C12: =IF('Data Entry'!C59<>"",'Data Entry'!C59,"") -> 4 | D12: =IF('Data Entry'!D59<>"",'Data Entry'!D59,"") -> 2 | E12: =IF('Data Entry'!E59<>"",'Data Entry'!E59,"") -> 2 | F12: =IF('Data Entry'!F59<>"",'Data Entry'!F59,"") -> 2 | G12: =IF('Data Entry'!H59<>"",'Data Entry'!H59,"") -> 5 | H12: =IF('Data Entry'!I59<>"",'Data Entry'!I59,"") -> 23 | I12: 38 | J12: ='Data Entry'!$J$103 -> 44.55172414
A13: 6 | B13: =IF('Data Entry'!B60<>0,'Data Entry'!B60,"") -> Hudson, Harriette | C13: =IF('Data Entry'!C60<>"",'Data Entry'!C60,"") -> 5 | D13: =IF('Data Entry'!D60<>"",'Data Entry'!D60,"") -> 2 | E13: =IF('Data Entry'!E60<>"",'Data Entry'!E60,"") -> 3 | F13: =IF('Data Entry'!F60<>"",'Data Entry'!F60,"") -> 1 | G13: =IF('Data Entry'!H60<>"",'Data Entry'!H60,"") -> 4 | H13: =IF('Data Entry'!I60<>"",'Data Entry'!I60,"") -> 43 | I13: 58 | J13: ='Data Entry'!$J$103 -> 44.55172414
A14: 7 | B14: =IF('Data Entry'!B61<>0,'Data Entry'!B61,"") -> Messia, Penny | C14: =IF('Data Entry'!C61<>"",'Data Entry'!C61,"") -> 5 | D14: =IF('Data Entry'!D61<>"",'Data Entry'!D61,"") -> 3 | E14: =IF('Data Entry'!E61<>"",'Data Entry'!E61,"") -> 3 | F14: =IF('Data Entry'!F61<>"",'Data Entry'!F61,"") -> 2 | G14: =IF('Data Entry'!H61<>"",'Data Entry'!H61,"") -> 7 | H14: =IF('Data Entry'!I61<>"",'Data Entry'!I61,"") -> 28 | I14: 48 | J14: ='Data Entry'!$J$103 -> 44.55172414
A15: 8 | B15: =IF('Data Entry'!B62<>0,'Data Entry'!B62,"") -> Penner, Elaine | C15: =IF('Data Entry'!C62<>"",'Data Entry'!C62,"") -> 3 | D15: =IF('Data Entry'!D62<>"",'Data Entry'!D62,"") -> 3 | E15: =IF('Data Entry'!E62<>"",'Data Entry'!E62,"") -> 2 | F15: =IF('Data Entry'!F62<>"",'Data Entry'!F62,"") -> 2 | G15: =IF('Data Entry'!H62<>"",'Data Entry'!H62,"") -> 8 | H15: =IF('Data Entry'!I62<>"",'Data Entry'!I62,"") -> 44 | I15: 62 | J15: ='Data Entry'!$J$103 -> 44.55172414
A16: 9 | B16: =IF('Data Entry'!B63<>0,'Data Entry'!B63,"") -> Rajooley, Anna | C16: =IF('Data Entry'!C63<>"",'Data Entry'!C63,"") -> 3 | D16: =IF('Data Entry'!D63<>"",'Data Entry'!D63,"") -> 4 | E16: =IF('Data Entry'!E63<>"",'Data Entry'!E63,"") -> 4 | F16: =IF('Data Entry'!F63<>"",'Data Entry'!F63,"") -> 3 | G16: =IF('Data Entry'!H63<>"",'Data Entry'!H63,"") -> 7 | H16: =IF('Data Entry'!I63<>"",'Data Entry'!I63,"") -> 21 | I16: 42 | J16: ='Data Entry'!$J$103 -> 44.55172414
A17: 10 | B17: =IF('Data Entry'!B64<>0,'Data Entry'!B64,"") -> Renzulli, Leah | C17: =IF('Data Entry'!C64<>"",'Data Entry'!C64,"") -> 4 | D17: =IF('Data Entry'!D64<>"",'Data Entry'!D64,"") -> 4 | E17: =IF('Data Entry'!E64<>"",'Data Entry'!E64,"") -> 3 | F17: =IF('Data Entry'!F64<>"",'Data Entry'!F64,"") -> 2 | G17: =IF('Data Entry'!H64<>"",'Data Entry'!H64,"") -> 7 | H17: =IF('Data Entry'!I64<>"",'Data Entry'!I64,"") -> 18 | I17: 38 | J17: ='Data Entry'!$J$103 -> 44.55172414
A18: 11 | B18: =IF('Data Entry'!B65<>0,'Data Entry'!B65,"") -> Roxmeyer, Zoey | C18: =IF('Data Entry'!C65<>"",'Data Entry'!C65,"") -> 2 | D18: =IF('Data Entry'!D65<>"",'Data Entry'!D65,"") -> 3 | E18: =IF('Data Entry'!E65<>"",'Data Entry'!E65,"") -> 3 | F18: =IF('Data Entry'!F65<>"",'Data Entry'!F65,"") -> 3 | G18: =IF('Data Entry'!H65<>"",'Data Entry'!H65,"") -> 6 | H18: =IF('Data Entry'!I65<>"",'Data Entry'!I65,"") -> 32 | I18: 49 | J18: ='Data Entry'!$J$103 -> 44.55172414
A19: 12 | B19: =IF('Data Entry'!B66<>0,'Data Entry'!B66,"") -> Sailing, Mark | C19: =IF('Data Entry'!C66<>"",'Data Entry'!C66,"") -> 3 | D19: =IF('Data Entry'!D66<>"",'Data Entry'!D66,"") -> 4 | E19: =IF('Data Entry'!E66<>"",'Data Entry'!E66,"") -> 3 | F19: =IF('Data Entry'!F66<>"",'Data Entry'!F66,"") -> 2 | G19: =IF('Data Entry'!H66<>"",'Data Entry'!H66,"") -> 8 | H19: =IF('Data Entry'!I66<>"",'Data Entry'!I66,"") -> 41 | I19: 61 | J19: ='Data Entry'!$J$103 -> 44.55172414
A20: 13 | B20: =IF('Data Entry'!B67<>0,'Data Entry'!B67,"") -> Sage, Taber | C20: =IF('Data Entry'!C67<>"",'Data Entry'!C67,"") -> 3 | D20: =IF('Data Entry'!D67<>"",'Data Entry'!D67,"") -> 3 | E20: =IF('Data Entry'!E67<>"",'Data Entry'!E67,"") -> 5 | F20: =IF('Data Entry'!F67<>"",'Data Entry'!F67,"") -> 3 | G20: =IF('Data Entry'!H67<>"",'Data Entry'!H67,"") -> 8 | H20: =IF('Data Entry'!I67<>"",'Data Entry'!I67,"") -> 39 | I20: 61 | J20: ='Data Entry'!$J$103 -> 44.55172414
A21: 14 | B21: =IF('Data Entry'!B68<>0,'Data Entry'!B68,"") -> Sarbock, Melanie | C21: =IF('Data Entry'!C68<>"",'Data Entry'!C68,"") -> 4 | D21: =IF('Data Entry'!D68<>"",'Data Entry'!D68,"") -> 4 | E21: =IF('Data Entry'!E68<>"",'Data Entry'!E68,"") -> 3 | F21: =IF('Data Entry'!F68<>"",'Data Entry'!F68,"") -> 3 | G21: =IF('Data Entry'!H68<>"",'Data Entry'!H68,"") -> 6 | H21: =IF('Data Entry'!I68<>"",'Data Entry'!I68,"") -> 31 | I21: 51 | J21: ='Data Entry'!$J$103 -> 44.55172414
A22: 15 | B22: =IF('Data Entry'!B69<>0,'Data Entry'!B69,"") -> Senkiw, John | C22: =IF('Data Entry'!C69<>"",'Data Entry'!C69,"") -> 5 | D22: =IF('Data Entry'!D69<>"",'Data Entry'!D69,"") -> 3 | E22: =IF('Data Entry'!E69<>"",'Data Entry'!E69,"") -> 3 | F22: =IF('Data Entry'!F69<>"",'Data Entry'!F69,"") -> 2 | G22: =IF('Data Entry'!H69<>"",'Data Entry'!H69,"") -> 4 | H22: =IF('Data Entry'!I69<>"",'Data Entry'!I69,"") -> 37 | I22: 54 | J22: ='Data Entry'!$J$103 -> 44.55172414
A23: 16 | B23: =IF('Data Entry'!B70<>0,'Data Entry'!B70,"") -> Tellery, Simon | C23: =IF('Data Entry'!C70<>"",'Data Entry'!C70,"") -> 4 | D23: =IF('Data Entry'!D70<>"",'Data Entry'!D70,"") -> 2 | E23: =IF('Data Entry'!E70<>"",'Data Entry'!E70,"") -> 4 | F23: =IF('Data Entry'!F70<>"",'Data Entry'!F70,"") -> 2 | G23: =IF('Data Entry'!H70<>"",'Data Entry'!H70,"") -> 3 | H23: =IF('Data Entry'!I70<>"",'Data Entry'!I70,"") -> 34 | I23: 49 | J23: ='Data Entry'!$J$103 -> 44.55172414
A24: 17 | B24: =IF('Data Entry'!B71<>0,'Data Entry'!B71,"") -> Ustabar, Vallery | C24: =IF('Data Entry'!C71<>"",'Data Entry'!C71,"") -> 3 | D24: =IF('Data Entry'!D71<>"",'Data Entry'!D71,"") -> 3 | E24: =IF('Data Entry'!E71<>"",'Data Entry'!E71,"") -> 3 | F24: =IF('Data Entry'!F71<>"",'Data Entry'!F71,"") -> 2 | G24: =IF('Data Entry'!H71<>"",'Data Entry'!H71,"") -> 6 | H24: =IF('Data Entry'!I71<>"",'Data Entry'!I71,"") -> 25 | I24: 42 | J24: ='Data Entry'!$J$103 -> 44.55172414 | P24: =21-COUNTBLANK(P3:P23) -> 1
A25: 18 | B25: =IF('Data Entry'!B72<>0,'Data Entry'!B72,"") -> Zark, Timmy | C25: =IF('Data Entry'!C72<>"",'Data Entry'!C72,"") -> 3 | D25: =IF('Data Entry'!D72<>"",'Data Entry'!D72,"") -> 2 | E25: =IF('Data Entry'!E72<>"",'Data Entry'!E72,"") -> 2 | F25: =IF('Data Entry'!F72<>"",'Data Entry'!F72,"") -> 1 | G25: =IF('Data Entry'!H72<>"",'Data Entry'!H72,"") -> 4 | H25: =IF('Data Entry'!I72<>"",'Data Entry'!I72,"") -> 22 | I25: 34 | J25: ='Data Entry'!$J$103 -> 44.55172414
A26: 19 | J26: ='Data Entry'!$J$103 -> 44.55172414
A27: 20 | J27: ='Data Entry'!$J$103 -> 44.55172414
A28: 21 | J28: ='Data Entry'!$J$103 -> 44.55172414
I29: ='Data Entry'!$J$103 -> 44.55172414
B30: No. of Highlighted cells | C30: =COUNTIF(C8:C28,"<"&C7) -> 2 | D30: =COUNTIF(D8:D28,"<"&D7) -> 1 | E30: 0 | F30: 0 | G30: 2 | H30: 1 | I30: 1
I31: ='Data Entry'!$J$103 -> 44.55172414
B32: % of Ss with Sig. Weaknesses | C32: =C30/14*100 -> 14.28571429 | D32: =D30/14*100 -> 7.142857143 | E32: 0 | F32: 0 | G32: =G30/14*100 -> 14.28571429 | H32: =H30/14*100 -> 7.142857143 | I32: =I30/14*100 -> 7.142857143
B34: % Degree of Mastery for all Ss | C34: =100-C32 -> 85.71428571 | D34: =100-D32 -> 92.85714286 | E34: 100 | F34: 100 | G34: N/A | H34: =100-H32 -> 92.85714286 | I34: =100-I32 -> 92.85714286
J35: ='Data Entry'!$J$103 -> 44.55172414
J36: ='Data Entry'!$J$103 -> 44.55172414
J37: ='Data Entry'!$J$103 -> 44.55172414

Sheet Class 5
B1: Teacher: | C1: Helen Anderson
B2: Grade: | C2: K5V | P2: At-Risk Students
A3: # | C3: Blending Syllables | D3: Segmenting to Syllables | E3: Blending Phonemes | F3: Segmenting to Phonemes | G3: Phonological Memory | H3: Letter Naming Fluency | I3: Grand Total | P3: =IF(I8<$I$7,B8,"") -> 
P4: Brow, Lenny
C5: ='Data Entry'!$C$103 -> 3.701149425 | D5: ='Data Entry'!$D$103 -> 2.540229885 | E5: ='Data Entry'!E103 -> 2.735632184 | F5: ='Data Entry'!F103 -> 1.91954023 | G5: ='Data Entry'!H103 -> 5.586206897 | H5: ='Data Entry'!$I$103 -> 28.06896552 | I5: ='Data Entry'!J103 -> 44.55172414 | J5: Means
B6: Student | C6: ='Data Entry'!$C$104 -> 1.024297179 | D6: ='Data Entry'!$D$104 -> 0.9977252931 | E6: ='Data Entry'!E104 -> 1.243211989 | F6: ='Data Entry'!F104 -> 0.9303461572 | G6: ='Data Entry'!H104 -> 1.944292327 | H6: ='Data Entry'!$I$104 -> 11.76098507 | I6: ='Data Entry'!J104 -> 15.1433143 | J6: Std. Devs. | P6: Dedrington, Nick
B7: Names | C7: =C5-C6 -> 2.676852247 | D7: =D5-D6 -> 1.542504592 | E7: =E5-E6 -> 1.492420195 | F7: 0.9891940727 | G7: 3.641914569 | H7: 16.30798045 | I7: =I5-(I6) -> 29.40840984 | J7: Cut-off Scores
A8: 1 | B8: =IF('Data Entry'!B73<>0,'Data Entry'!B73,"") -> Belburg, Elise | C8: =IF('Data Entry'!C73<>"",'Data Entry'!C73,"") -> 5 | D8: =IF('Data Entry'!D73<>"",'Data Entry'!D73,"") -> 2 | E8: =IF('Data Entry'!E73<>"",'Data Entry'!E73,"") -> 4 | F8: =IF('Data Entry'!F73<>"",'Data Entry'!F73,"") -> 2 | G8: =IF('Data Entry'!H73<>"",'Data Entry'!H73,"") -> 4 | H8: =IF('Data Entry'!I73<>"",'Data Entry'!I73,"") -> 18 | I8: =IF(SUM(C8:H8)<>0,SUM(C8:H8),"") -> 35 | J8: ='Data Entry'!$J$103 -> 44.55172414
A9: 2 | B9: =IF('Data Entry'!B74<>0,'Data Entry'!B74,"") -> Brow, Lenny | C9: =IF('Data Entry'!C74<>"",'Data Entry'!C74,"") -> 2 | D9: =IF('Data Entry'!D74<>"",'Data Entry'!D74,"") -> 1 | E9: =IF('Data Entry'!E74<>"",'Data Entry'!E74,"") -> 2 | F9: =IF('Data Entry'!F74<>"",'Data Entry'!F74,"") -> 1 | G9: =IF('Data Entry'!H74<>"",'Data Entry'!H74,"") -> 1 | H9: =IF('Data Entry'!I74<>"",'Data Entry'!I74,"") -> 8 | I9: =IF(SUM(C9:H9)<>0,SUM(C9:H9),"") -> 15 | J9: ='Data Entry'!$J$103 -> 44.55172414 | P9: Pattern, Viyan
A10: 3 | B10: =IF('Data Entry'!B75<>0,'Data Entry'!B75,"") -> Cramer, Sophie | C10: =IF('Data Entry'!C75<>"",'Data Entry'!C75,"") -> 4 | D10: =IF('Data Entry'!D75<>"",'Data Entry'!D75,"") -> 3 | E10: =IF('Data Entry'!E75<>"",'Data Entry'!E75,"") -> 4 | F10: =IF('Data Entry'!F75<>"",'Data Entry'!F75,"") -> 3 | G10: =IF('Data Entry'!H75<>"",'Data Entry'!H75,"") -> 8 | H10: =IF('Data Entry'!I75<>"",'Data Entry'!I75,"") -> 36 | I10: =IF(SUM(C10:H10)<>0,SUM(C10:H10),"") -> 58 | J10: ='Data Entry'!$J$103 -> 44.55172414 | P10: Pries, Nolan
A11: 4 | B11: =IF('Data Entry'!B76<>0,'Data Entry'!B76,"") -> Dedrington, Nick | C11: =IF('Data Entry'!C76<>"",'Data Entry'!C76,"") -> 5 | D11: =IF('Data Entry'!D76<>"",'Data Entry'!D76,"") -> 2 | E11: =IF('Data Entry'!E76<>"",'Data Entry'!E76,"") -> 2 | F11: =IF('Data Entry'!F76<>"",'Data Entry'!F76,"") -> 1 | G11: =IF('Data Entry'!H76<>"",'Data Entry'!H76,"") -> 3 | H11: =IF('Data Entry'!I76<>"",'Data Entry'!I76,"") -> 15 | I11: 28 | J11: ='Data Entry'!$J$103 -> 44.55172414
A12: 5 | B12: =IF('Data Entry'!B77<>0,'Data Entry'!B77,"") -> Enns, Benjamin | C12: =IF('Data Entry'!C77<>"",'Data Entry'!C77,"") -> 5 | D12: =IF('Data Entry'!D77<>"",'Data Entry'!D77,"") -> 2 | E12: =IF('Data Entry'!E77<>"",'Data Entry'!E77,"") -> 1 | F12: =IF('Data Entry'!F77<>"",'Data Entry'!F77,"") -> 1 | G12: =IF('Data Entry'!H77<>"",'Data Entry'!H77,"") -> 3 | H12: =IF('Data Entry'!I77<>"",'Data Entry'!I77,"") -> 20 | I12: 32 | J12: ='Data Entry'!$J$103 -> 44.55172414
A13: 6 | B13: =IF('Data Entry'!B78<>0,'Data Entry'!B78,"") -> Passenger, Phoebe | C13: =IF('Data Entry'!C78<>"",'Data Entry'!C78,"") -> 4 | D13: =IF('Data Entry'!D78<>"",'Data Entry'!D78,"") -> 2 | E13: =IF('Data Entry'!E78<>"",'Data Entry'!E78,"") -> 2 | F13: =IF('Data Entry'!F78<>"",'Data Entry'!F78,"") -> 2 | G13: =IF('Data Entry'!H78<>"",'Data Entry'!H78,"") -> 5 | H13: =IF('Data Entry'!I78<>"",'Data Entry'!I78,"") -> 42 | I13: 57 | J13: ='Data Entry'!$J$103 -> 44.55172414
A14: 7 | B14: =IF('Data Entry'!B79<>0,'Data Entry'!B79,"") -> Pattern, Viyan | C14: =IF('Data Entry'!C79<>"",'Data Entry'!C79,"") -> 3 | D14: =IF('Data Entry'!D79<>"",'Data Entry'!D79,"") -> 1 | E14: =IF('Data Entry'!E79<>"",'Data Entry'!E79,"") -> 1 | F14: =IF('Data Entry'!F79<>"",'Data Entry'!F79,"") -> 1 | G14: =IF('Data Entry'!H79<>"",'Data Entry'!H79,"") -> 2 | H14: =IF('Data Entry'!I79<>"",'Data Entry'!I79,"") -> 14 | I14: 22 | J14: ='Data Entry'!$J$103 -> 44.55172414
A15: 8 | B15: =IF('Data Entry'!B80<>0,'Data Entry'!B80,"") -> Pries, Nolan | C15: =IF('Data Entry'!C80<>"",'Data Entry'!C80,"") -> 3 | D15: =IF('Data Entry'!D80<>"",'Data Entry'!D80,"") -> 1 | E15: =IF('Data Entry'!E80<>"",'Data Entry'!E80,"") -> 1 | F15: =IF('Data Entry'!F80<>"",'Data Entry'!F80,"") -> 1 | G15: =IF('Data Entry'!H80<>"",'Data Entry'!H80,"") -> 3 | H15: =IF('Data Entry'!I80<>"",'Data Entry'!I80,"") -> 19 | I15: 28 | J15: ='Data Entry'!$J$103 -> 44.55172414
A16: 9 | B16: =IF('Data Entry'!B81<>0,'Data Entry'!B81,"") -> Prodical, Sophie | C16: =IF('Data Entry'!C81<>"",'Data Entry'!C81,"") -> 2 | D16: =IF('Data Entry'!D81<>"",'Data Entry'!D81,"") -> 4 | E16: =IF('Data Entry'!E81<>"",'Data Entry'!E81,"") -> 3 | F16: =IF('Data Entry'!F81<>"",'Data Entry'!F81,"") -> 2 | G16: =IF('Data Entry'!H81<>"",'Data Entry'!H81,"") -> 8 | H16: =IF('Data Entry'!I81<>"",'Data Entry'!I81,"") -> 24 | I16: 43 | J16: ='Data Entry'!$J$103 -> 44.55172414
A17: 10 | B17: =IF('Data Entry'!B82<>0,'Data Entry'!B82,"") -> Rockport, Sandra | C17: =IF('Data Entry'!C82<>"",'Data Entry'!C82,"") -> 3 | D17: =IF('Data Entry'!D82<>"",'Data Entry'!D82,"") -> 3 | E17: =IF('Data Entry'!E82<>"",'Data Entry'!E82,"") -> 2 | F17: =IF('Data Entry'!F82<>"",'Data Entry'!F82,"") -> 2 | G17: =IF('Data Entry'!H82<>"",'Data Entry'!H82,"") -> 5 | H17: =IF('Data Entry'!I82<>"",'Data Entry'!I82,"") -> 28 | I17: 43 | J17: ='Data Entry'!$J$103 -> 44.55172414 | P17: Wollmann, Jayson
A18: 11 | B18: =IF('Data Entry'!B83<>0,'Data Entry'!B83,"") -> Sarkuchi, Danny | C18: =IF('Data Entry'!C83<>"",'Data Entry'!C83,"") -> 3 | D18: =IF('Data Entry'!D83<>"",'Data Entry'!D83,"") -> 2 | E18: =IF('Data Entry'!E83<>"",'Data Entry'!E83,"") -> 1 | F18: =IF('Data Entry'!F83<>"",'Data Entry'!F83,"") -> 1 | G18: =IF('Data Entry'!H83<>"",'Data Entry'!H83,"") -> 4 | H18: =IF('Data Entry'!I83<>"",'Data Entry'!I83,"") -> 22 | I18: 33 | J18: ='Data Entry'!$J$103 -> 44.55172414
A19: 12 | B19: =IF('Data Entry'!B84<>0,'Data Entry'!B84,"") -> Schneider, Lucas | C19: =IF('Data Entry'!C84<>"",'Data Entry'!C84,"") -> 4 | D19: =IF('Data Entry'!D84<>"",'Data Entry'!D84,"") -> 2 | E19: =IF('Data Entry'!E84<>"",'Data Entry'!E84,"") -> 2 | F19: =IF('Data Entry'!F84<>"",'Data Entry'!F84,"") -> 1 | G19: =IF('Data Entry'!H84<>"",'Data Entry'!H84,"") -> 4 | H19: =IF('Data Entry'!I84<>"",'Data Entry'!I84,"") -> 19 | I19: 32 | J19: ='Data Entry'!$J$103 -> 44.55172414
A20: 13 | B20: =IF('Data Entry'!B85<>0,'Data Entry'!B85,"") -> Sellandro, Dennis | C20: =IF('Data Entry'!C85<>"",'Data Entry'!C85,"") -> 5 | D20: =IF('Data Entry'!D85<>"",'Data Entry'!D85,"") -> 3 | E20: =IF('Data Entry'!E85<>"",'Data Entry'!E85,"") -> 3 | F20: =IF('Data Entry'!F85<>"",'Data Entry'!F85,"") -> 2 | G20: =IF('Data Entry'!H85<>"",'Data Entry'!H85,"") -> 6 | H20: =IF('Data Entry'!I85<>"",'Data Entry'!I85,"") -> 34 | I20: 53 | J20: ='Data Entry'!$J$103 -> 44.55172414
A21: 14 | B21: =IF('Data Entry'!B86<>0,'Data Entry'!B86,"") -> Wallburg, Rose | C21: =IF('Data Entry'!C86<>"",'Data Entry'!C86,"") -> 4 | D21: =IF('Data Entry'!D86<>"",'Data Entry'!D86,"") -> 2 | E21: =IF('Data Entry'!E86<>"",'Data Entry'!E86,"") -> 2 | F21: =IF('Data Entry'!F86<>"",'Data Entry'!F86,"") -> 1 | G21: =IF('Data Entry'!H86<>"",'Data Entry'!H86,"") -> 7 | H21: =IF('Data Entry'!I86<>"",'Data Entry'!I86,"") -> 26 | I21: 42 | J21: ='Data Entry'!$J$103 -> 44.55172414
A22: 15 | B22: =IF('Data Entry'!B87<>0,'Data Entry'!B87,"") -> Wollmann, Jayson | C22: =IF('Data Entry'!C87<>"",'Data Entry'!C87,"") -> 3 | D22: =IF('Data Entry'!D87<>"",'Data Entry'!D87,"") -> 2 | E22: =IF('Data Entry'!E87<>"",'Data Entry'!E87,"") -> 1 | F22: =IF('Data Entry'!F87<>"",'Data Entry'!F87,"") -> 1 | G22: =IF('Data Entry'!H87<>"",'Data Entry'!H87,"") -> 3 | H22: =IF('Data Entry'!I87<>"",'Data Entry'!I87,"") -> 19 | I22: 29 | J22: ='Data Entry'!$J$103 -> 44.55172414
A23: 16 | B23: =IF('Data Entry'!B88<>0,'Data Entry'!B88,"") -> Wood, Anna | C23: =IF('Data Entry'!C88<>"",'Data Entry'!C88,"") -> 4 | D23: =IF('Data Entry'!D88<>"",'Data Entry'!D88,"") -> 3 | E23: =IF('Data Entry'!E88<>"",'Data Entry'!E88,"") -> 3 | F23: =IF('Data Entry'!F88<>"",'Data Entry'!F88,"") -> 2 | G23: =IF('Data Entry'!H88<>"",'Data Entry'!H88,"") -> 9 | H23: =IF('Data Entry'!I88<>"",'Data Entry'!I88,"") -> 29 | I23: 50 | J23: ='Data Entry'!$J$103 -> 44.55172414
A24: 17 | B24: =IF('Data Entry'!B89<>0,'Data Entry'!B89,"") -> Yong, Liam | C24: =IF('Data Entry'!C89<>"",'Data Entry'!C89,"") -> 5 | D24: =IF('Data Entry'!D89<>"",'Data Entry'!D89,"") -> 5 | E24: =IF('Data Entry'!E89<>"",'Data Entry'!E89,"") -> 3 | F24: =IF('Data Entry'!F89<>"",'Data Entry'!F89,"") -> 3 | G24: =IF('Data Entry'!H89<>"",'Data Entry'!H89,"") -> 9 | H24: =IF('Data Entry'!I89<>"",'Data Entry'!I89,"") -> 42 | I24: 67 | J24: ='Data Entry'!$J$103 -> 44.55172414 | P24: =21-COUNTBLANK(P3:P23) -> 5
A25: 18 | J25: ='Data Entry'!$J$103 -> 44.55172414
A26: 19 | J26: ='Data Entry'!$J$103 -> 44.55172414
A27: 20 | J27: ='Data Entry'!$J$103 -> 44.55172414
A28: 21 | J28: ='Data Entry'!$J$103 -> 44.55172414
I29: ='Data Entry'!$J$103 -> 44.55172414
B30: No. of Highlighted cells | C30: =COUNTIF(C8:C28,"<"&C7) -> 2 | D30: =COUNTIF(D8:D28,"<"&D7) -> 3 | E30: 5 | F30: 0 | G30: 6 | H30: 3 | I30: 5
I31: ='Data Entry'!$J$103 -> 44.55172414
B32: % of Ss with Sig. Weaknesses | C32: =C30/14*100 -> 14.28571429 | D32: =D30/14*100 -> 21.42857143 | E32: 35.71428571 | F32: 0 | G32: =G30/14*100 -> 42.85714286 | H32: =H30/14*100 -> 21.42857143 | I32: =I30/14*100 -> 35.71428571
B34: % Degree of Mastery for all Ss | C34: =100-C32 -> 85.71428571 | D34: =100-D32 -> 78.57142857 | E34: 64.28571429 | F34: 100 | G34: N/A | H34: =100-H32 -> 78.57142857 | I34: =100-I32 -> 64.28571429
J35: ='Data Entry'!$J$103 -> 44.55172414
J36: ='Data Entry'!$J$103 -> 44.55172414
J37: ='Data Entry'!$J$103 -> 44.55172414

Sheet Std Sc. Graph 1
C1: Grand Total
B3: Student Names | C3: ='Class 1'!$I$5 -> 44.55172414 | E3: Standard Scores
C4: ='Class 1'!$I$6 -> 15.1433143
B5: ='Class 1'!B8 -> Akinomesk, Joshua | C5: ='Class 1'!I8 -> 71 | D5: =IF(C5=0,"",(C5-$C$3)/$C$4) -> 1.746531528 | E5: =100+D5*(15) -> 126.1979729 | F5: =E5 -> 126.1979729 | G5: =IF(F5>=85,F5,"") -> 126.1979729 | H5: =IF(F5<85,F5,"") -> 
B6: ='Class 1'!B9 -> Anderski, Violet | C6: ='Class 1'!I9 -> 53 | D6: =IF(C6=0,"",(C6-$C$3)/$C$4) -> 0.5578881674 | E6: =100+D6*(15) -> 108.3683225 | F6: 108.3683225 | G6: =IF(F6>=85,F6,"") -> 108.3683225 | H6: =IF(F6<85,F6,"") -> 
B7: ='Class 1'!B10 -> Actara, Belle | C7: ='Class 1'!I10 -> 10 | D7: -2.28164875 | E7: 65.77526875 | F7: 65.77526875 | G7: =IF(F7>=85,F7,"") ->  | H7: 65.77526875
B8: ='Class 1'!B11 -> Bandito, Nicole | C8: ='Class 1'!I11 -> 25 | D8: -1.291112616 | E8: 80.63331076 | F8: 80.63331076 | H8: 80.63331076
B9: ='Class 1'!B12 -> Capriano, Geno | C9: ='Class 1'!I12 -> 67 | D9: 1.482388559 | E9: 122.2358284 | F9: 122.2358284 | G9: 122.2358284
B10: ='Class 1'!B13 -> Dweck, Kaori | C10: ='Class 1'!I13 -> 56 | D10: 0.7559953942 | E10: 111.3399309 | F10: 111.3399309 | G10: 111.3399309
B11: ='Class 1'!B14 -> Essman, Cal | C11: ='Class 1'!I14 -> 46 | D11: 0.09563797156 | E11: 101.4345696 | F11: 101.4345696 | G11: 101.4345696
B12: ='Class 1'!B15 -> Fast, Autumn | C12: ='Class 1'!I15 -> 61 | D12: 1.086174106 | E12: 116.2926116 | F12: 116.2926116 | G12: 116.2926116
B13: ='Class 1'!B16 -> Greenwall, Brayden | C13: ='Class 1'!I16 -> 66 | D13: 1.416352817 | E13: 121.2452923 | F13: 121.2452923 | G13: 121.2452923
B14: ='Class 1'!B17 -> Hallenko, Pierce | C14: ='Class 1'!I17 -> 19 | D14: -1.68732707 | E14: 74.69009396 | F14: 74.69009396 | H14: 74.69009396
B15: ='Class 1'!B18 -> Lowen, Hunter | C15: ='Class 1'!I18 -> 52 | D15: 0.4918524251 | E15: 107.3777864 | F15: 107.3777864 | G15: 107.3777864
B16: ='Class 1'!B19 -> Marbel, Melody | C16: ='Class 1'!I19 -> 42 | D16: -0.1685049975 | E16: 97.47242504 | F16: 97.47242504 | G16: 97.47242504
B17: ='Class 1'!B20 -> Peterson, Carmen | C17: ='Class 1'!I20 -> 17 | D17: -1.819398554 | E17: 72.70902169 | F17: 72.70902169 | H17: 72.70902169
B18: ='Class 1'!B21 -> Rice, Bruce | C18: ='Class 1'!I21 -> 44 | D18: -0.03643351297 | E18: 99.45349731 | F18: 99.45349731 | G18: 99.45349731
B19: ='Class 1'!B22 -> 0 | C19: ='Class 1'!I22 ->  | F19: 0 | H19: 0
B20: ='Class 1'!B23 -> 0 | C20: ='Class 1'!I23 ->  | F20: 0 | H20: 0
B21: ='Class 1'!B24 -> 0 | C21: ='Class 1'!I24 ->  | F21: 0 | H21: 0
B22: ='Class 1'!B25 -> 0 | C22: ='Class 1'!I25 ->  | F22: 0 | H22: 0
B23: ='Class 1'!B26 -> 0 | C23: ='Class 1'!I26 ->  | F23: 0 | H23: 0
B24: ='Class 1'!B27 -> 0 | C24: ='Class 1'!I27 ->  | F24: 0 | H24: 0
B25: ='Class 1'!B28 -> 0 | C25: ='Class 1'!I28 ->  | F25: 0 | H25: 0

Sheet Std Sc. Graph 2
C1: Grand Total
B3: Student Names | C3: ='Class 1'!$I$5 -> 44.55172414 | E3: Standard Scores
C4: ='Class 1'!$I$6 -> 15.1433143
B5: ='Data Entry'!B17 -> Broman, Clara | C5: ='Class 2'!I8 -> 39 | D5: =IF(C5=0,"",(C5-$C$3)/$C$4) -> -0.3666122243 | E5: =100+D5*(15) -> 94.50081664 | F5: =E5 -> 94.50081664 | G5: =IF(F5>=85,F5,"") -> 94.50081664 | H5: =IF(F5<85,F5,"") -> 
B6: ='Data Entry'!B18 -> Catchy, Danny | C6: ='Class 2'!I9 -> 52 | D6: =IF(C6=0,"",(C6-$C$3)/$C$4) -> 0.4918524251 | E6: =100+D6*(15) -> 107.3777864 | F6: 107.3777864 | G6: =IF(F6>=85,F6,"") -> 107.3777864 | H6: =IF(F6<85,F6,"") -> 
B7: ='Data Entry'!B19 -> Cayburn, Karl | C7: ='Class 2'!I10 -> 57 | D7: 0.8220311365 | E7: 112.330467 | F7: 112.330467 | G7: 112.330467
B8: ='Data Entry'!B20 -> Demonslayer, Darryl | C8: ='Class 2'!I11 -> 22 | D8: -1.489219843 | E8: 77.66170236 | F8: 77.66170236 | H8: 77.66170236
B9: ='Data Entry'!B21 -> Hanson, Sawyer | C9: ='Class 2'!I12 -> 20 | D9: -1.621291327 | E9: 75.68063009 | F9: 75.68063009 | H9: 75.68063009
B10: ='Data Entry'!B22 -> Hiebert, Bruce | C10: ='Class 2'!I13 -> 69 | D10: 1.614460044 | E10: 124.2169007 | F10: 124.2169007 | G10: 124.2169007
B11: ='Data Entry'!B23 -> Heidelburg, Corby | C11: ='Class 2'!I14 -> 55 | D11: 0.6899596519 | E11: 110.3493948 | F11: 110.3493948 | G11: 110.3493948
B12: ='Data Entry'!B24 -> Krinkle, Luke | C12: ='Class 2'!I15 -> 34 | D12: -0.6967909356 | E12: 89.54813597 | F12: 89.54813597 | G12: 89.54813597
B13: ='Data Entry'!B25 -> Lagensky, Patty | C13: ='Class 2'!I16 -> 20 | D13: -1.621291327 | E13: 75.68063009 | F13: 75.68063009 | H13: 75.68063009
B14: ='Data Entry'!B26 -> Lorrey, Fred | C14: ='Class 2'!I17 -> 27 | D14: -1.159041131 | E14: 82.61438303 | F14: 82.61438303 | H14: 82.61438303
B15: ='Data Entry'!B27 -> Marvel, Captain | C15: ='Class 2'!I18 -> 37 | D15: -0.4986837088 | E15: 92.51974437 | F15: 92.51974437 | G15: 92.51974437
B16: ='Data Entry'!B28 -> Manswella, Rico | C16: ='Class 2'!I19 -> 50 | D16: 0.3597809406 | E16: 105.3967141 | F16: 105.3967141 | G16: 105.3967141
B17: ='Data Entry'!B29 -> Ohera, Marian | C17: ='Class 2'!I20 -> 27 | D17: -1.159041131 | E17: 82.61438303 | F17: 82.61438303 | H17: 82.61438303
B18: ='Data Entry'!B30 -> Penner, Annie | C18: ='Class 2'!I21 -> 40 | D18: -0.300576482 | E18: 95.49135277 | F18: 95.49135277 | G18: 95.49135277
B19: ='Data Entry'!B31 -> Sarbucker, Cassedy | C19: ='Class 2'!I22 -> 26 | D19: -1.225076874 | E19: 81.62384689 | F19: 81.62384689 | H19: 81.62384689
B20: ='Data Entry'!B32 -> Schell, John | C20: ='Class 2'!I23 -> 39 | D20: -0.3666122243 | E20: 94.50081664 | F20: 94.50081664 | G20: 94.50081664
B21: ='Data Entry'!B33 -> Skaper, Leah | C21: ='Class 2'!I24 -> 24 | D21: -1.357148358 | E21: 79.64277463 | F21: 79.64277463 | H21: 79.64277463
B22: ='Data Entry'!B34 -> Shneider, Ingrid | C22: ='Class 2'!I25 -> 27 | D22: -1.159041131 | E22: 82.61438303 | F22: 82.61438303 | H22: 82.61438303
B23: ='Data Entry'!B35 -> klywalker, Eric | C23: ='Class 2'!I26 -> 43 | D23: -0.1024692552 | E23: 98.46296117 | F23: 98.46296117 | G23: 98.46296117
B24: ='Data Entry'!B36 -> Voit, John | C24: ='Class 2'!I27 -> 47 | D24: 0.1616737138 | E24: 102.4251057 | F24: 102.4251057 | G24: 102.4251057
C32: psych

Sheet Std Sc. Graph 3
C1: Grand Total
B3: Student Names | C3: ='Class 1'!$I$5 -> 44.55172414 | E3: Standard Scores
C4: ='Class 1'!$I$6 -> 15.1433143
B5: ='Data Entry'!B37 -> Benito, Ester | C5: ='Class 3'!I8 -> 37 | D5: =IF(C5=0,"",(C5-$C$3)/$C$4) -> -0.4986837088 | E5: =100+D5*(15) -> 92.51974437 | F5: =E5 -> 92.51974437 | G5: =IF(F5>=85,F5,"") -> 92.51974437 | H5: =IF(F5<85,F5,"") -> 
B6: ='Data Entry'!B38 -> Dorito, Danny | C6: ='Class 3'!I9 -> 22 | D6: =IF(C6=0,"",(C6-$C$3)/$C$4) -> -1.489219843 | E6: =100+D6*(15) -> 77.66170236 | F6: 77.66170236 | G6: =IF(F6>=85,F6,"") ->  | H6: =IF(F6<85,F6,"") -> 77.66170236
B7: ='Data Entry'!B39 -> Friesen, Elaine | C7: ='Class 3'!I10 -> 59 | D7: 0.954102621 | E7: 114.3115393 | F7: 114.3115393 | G7: 114.3115393
B8: ='Data Entry'!B40 -> Fronk, Clara | C8: ='Class 3'!I11 -> 59 | D8: 0.954102621 | E8: 114.3115393 | F8: 114.3115393 | G8: 114.3115393
B9: ='Data Entry'!B41 -> Gillingham, Teddy | C9: ='Class 3'!I12 -> 40 | D9: -0.300576482 | E9: 95.49135277 | F9: 95.49135277 | G9: 95.49135277
B10: ='Data Entry'!B42 -> Harder, Hellen | C10: ='Class 3'!I13 -> 58 | D10: 0.8880668787 | E10: 113.3210032 | F10: 113.3210032 | G10: 113.3210032
B11: ='Data Entry'!B43 -> Heinrichs, Audrey | C11: ='Class 3'!I14 -> 49 | D11: 0.2937451983 | E11: 104.406178 | F11: 104.406178 | G11: 104.406178
B12: ='Data Entry'!B44 -> Hofmann, Joan | C12: ='Class 3'!I15 -> 69 | D12: 1.614460044 | E12: 124.2169007 | F12: 124.2169007 | G12: 124.2169007
B13: ='Data Entry'!B45 -> Klippenstein, Joey | C13: ='Class 3'!I16 -> 54 | D13: 0.6239239097 | E13: 109.3588586 | F13: 109.3588586 | G13: 109.3588586
B14: ='Data Entry'!B46 -> Kolair, Henry | C14: ='Class 3'!I17 -> 65 | D14: 1.350317075 | E14: 120.2547561 | F14: 120.2547561 | G14: 120.2547561
B15: ='Data Entry'!B47 -> Marquette, Ryan | C15: ='Class 3'!I18 -> 61 | D15: 1.086174106 | E15: 116.2926116 | F15: 116.2926116 | G15: 116.2926116
B16: ='Data Entry'!B48 -> Martin, Katie | C16: ='Class 3'!I19 -> 70 | D16: 1.680495786 | E16: 125.2074368 | F16: 125.2074368 | G16: 125.2074368
B17: ='Data Entry'!B49 -> Mutch, Jayden | C17: ='Class 3'!I20 -> 47 | D17: 0.1616737138 | E17: 102.4251057 | F17: 102.4251057 | G17: 102.4251057
B18: ='Data Entry'!B50 -> Penner, Robert | C18: ='Class 3'!I21 -> 58 | D18: 0.8880668787 | E18: 113.3210032 | F18: 113.3210032 | G18: 113.3210032
B19: ='Data Entry'!B51 -> Schultz, Mario | C19: ='Class 3'!I22 -> 47 | D19: 0.1616737138 | E19: 102.4251057 | F19: 102.4251057 | G19: 102.4251057
B20: ='Data Entry'!B52 -> Smith, Abby | C20: ='Class 3'!I23 -> 55 | D20: 0.6899596519 | E20: 110.3493948 | F20: 110.3493948 | G20: 110.3493948
B21: ='Data Entry'!B53 -> Vogt, Adelle | C21: ='Class 3'!I24 -> 62 | D21: 1.152209848 | E21: 117.2831477 | F21: 117.2831477 | G21: 117.2831477
B22: ='Data Entry'!B54 -> Zilberman, Toni | C22: ='Class 3'!I25 -> 42 | D22: -0.1685049975 | E22: 97.47242504 | F22: 97.47242504 | G22: 97.47242504

Sheet Std Sc. Graph 4
C1: Grand Total
B3: Student Names | C3: ='Class 1'!$I$5 -> 44.55172414 | E3: Standard Scores
C4: ='Class 1'!$I$6 -> 15.1433143
B5: ='Data Entry'!B55 -> Ardene, Mary | C5: ='Class 4'!I8 -> 53 | D5: =IF(C5=0,"",(C5-$C$3)/$C$4) -> 0.5578881674 | E5: =100+D5*(15) -> 108.3683225 | F5: =E5 -> 108.3683225 | G5: =IF(F5>=85,F5,"") -> 108.3683225 | H5: =IF(F5<85,F5,"") -> 
B6: ='Data Entry'!B56 -> Brother, Peter | C6: ='Class 4'!I9 -> 62 | D6: =IF(C6=0,"",(C6-$C$3)/$C$4) -> 1.152209848 | E6: =100+D6*(15) -> 117.2831477 | F6: 117.2831477 | G6: =IF(F6>=85,F6,"") -> 117.2831477 | H6: =IF(F6<85,F6,"") -> 
B7: ='Data Entry'!B57 -> Bugeate, Moreen | C7: ='Class 4'!I10 -> 20 | D7: -1.621291327 | E7: 75.68063009 | F7: 75.68063009 | H7: 75.68063009
B8: ='Data Entry'!B58 -> Candy, William | C8: ='Class 4'!I11 -> 49 | D8: 0.2937451983 | E8: 104.406178 | F8: 104.406178 | G8: 104.406178
B9: ='Data Entry'!B59 -> Dyck, Teddy | C9: ='Class 4'!I12 -> 38 | D9: -0.4326479666 | E9: 93.5102805 | F9: 93.5102805 | G9: 93.5102805
B10: ='Data Entry'!B60 -> Hudson, Harriette | C10: ='Class 4'!I13 -> 58 | D10: 0.8880668787 | E10: 113.3210032 | F10: 113.3210032 | G10: 113.3210032
B11: ='Data Entry'!B61 -> Messia, Penny | C11: ='Class 4'!I14 -> 48 | D11: 0.2277094561 | E11: 103.4156418 | F11: 103.4156418 | G11: 103.4156418
B12: ='Data Entry'!B62 -> Penner, Elaine | C12: ='Class 4'!I15 -> 62 | D12: 1.152209848 | E12: 117.2831477 | F12: 117.2831477 | G12: 117.2831477
B13: ='Data Entry'!B63 -> Rajooley, Anna | C13: ='Class 4'!I16 -> 42 | D13: -0.1685049975 | E13: 97.47242504 | F13: 97.47242504 | G13: 97.47242504
B14: ='Data Entry'!B64 -> Renzulli, Leah | C14: ='Class 4'!I17 -> 38 | D14: -0.4326479666 | E14: 93.5102805 | F14: 93.5102805 | G14: 93.5102805
B15: ='Data Entry'!B65 -> Roxmeyer, Zoey | C15: ='Class 4'!I18 -> 49 | D15: 0.2937451983 | E15: 104.406178 | F15: 104.406178 | G15: 104.406178
B16: ='Data Entry'!B66 -> Sailing, Mark | C16: ='Class 4'!I19 -> 61 | D16: 1.086174106 | E16: 116.2926116 | F16: 116.2926116 | G16: 116.2926116
B17: ='Data Entry'!B67 -> Sage, Taber | C17: ='Class 4'!I20 -> 61 | D17: 1.086174106 | E17: 116.2926116 | F17: 116.2926116 | G17: 116.2926116
B18: ='Data Entry'!B68 -> Sarbock, Melanie | C18: ='Class 4'!I21 -> 51 | D18: 0.4258166829 | E18: 106.3872502 | F18: 106.3872502 | G18: 106.3872502
B19: ='Data Entry'!B69 -> Senkiw, John | C19: ='Class 4'!I22 -> 54 | D19: 0.6239239097 | E19: 109.3588586 | F19: 109.3588586 | G19: 109.3588586
B20: ='Data Entry'!B70 -> Tellery, Simon | C20: ='Class 4'!I23 -> 49 | D20: 0.2937451983 | E20: 104.406178 | F20: 104.406178 | G20: 104.406178
B21: ='Data Entry'!B71 -> Ustabar, Vallery | C21: ='Class 4'!I24 -> 42 | D21: -0.1685049975 | E21: 97.47242504 | F21: 97.47242504 | G21: 97.47242504
B22: ='Data Entry'!B72 -> Zark, Timmy | C22: ='Class 4'!I25 -> 34 | D22: -0.6967909356 | E22: 89.54813597 | F22: 89.54813597 | G22: 89.54813597

Sheet Std Sc. Graph 5
C1: Grand Total
B3: Student Names | C3: ='Class 1'!$I$5 -> 44.55172414 | E3: Standard Scores
C4: ='Class 1'!$I$6 -> 15.1433143
B5: ='Data Entry'!B73 -> Belburg, Elise | C5: ='Class 5'!I8 -> 35 | D5: =IF(C5=0,"",(C5-$C$3)/$C$4) -> -0.6307551934 | E5: =100+D5*(15) -> 90.5386721 | F5: =E5 -> 90.5386721 | G5: =IF(F5>=85,F5,"") -> 90.5386721 | H5: =IF(F5<85,F5,"") -> 
B6: ='Data Entry'!B74 -> Brow, Lenny | C6: ='Class 5'!I9 -> 15 | D6: -1.951470039 | E6: =100+D6*(15) -> 70.72794942 | F6: 70.72794942 | G6: =IF(F6>=85,F6,"") ->  | H6: =IF(F6<85,F6,"") -> 70.72794942
B7: ='Data Entry'!B75 -> Cramer, Sophie | C7: ='Class 5'!I10 -> 58 | D7: 0.8880668787 | E7: 113.3210032 | F7: 113.3210032 | G7: 113.3210032
B8: ='Data Entry'!B76 -> Dedrington, Nick | C8: ='Class 5'!I11 -> 28 | D8: -1.093005389 | E8: 83.60491916 | F8: 83.60491916 | H8: 83.60491916
B9: ='Data Entry'!B77 -> Enns, Benjamin | C9: ='Class 5'!I12 -> 32 | D9: -0.8288624201 | E9: 87.5670637 | F9: 87.5670637 | G9: 87.5670637
B10: ='Data Entry'!B78 -> Passenger, Phoebe | C10: ='Class 5'!I13 -> 57 | D10: 0.8220311365 | E10: 112.330467 | F10: 112.330467 | G10: 112.330467
B11: ='Data Entry'!B79 -> Pattern, Viyan | C11: ='Class 5'!I14 -> 22 | D11: -1.489219843 | E11: 77.66170236 | F11: 77.66170236 | H11: 77.66170236
B12: ='Data Entry'!B80 -> Pries, Nolan | C12: ='Class 5'!I15 -> 28 | D12: -1.093005389 | E12: 83.60491916 | F12: 83.60491916 | H12: 83.60491916
B13: ='Data Entry'!B81 -> Prodical, Sophie | C13: ='Class 5'!I16 -> 43 | D13: -0.1024692552 | E13: 98.46296117 | F13: 98.46296117 | G13: 98.46296117
B14: ='Data Entry'!B82 -> Rockport, Sandra | C14: ='Class 5'!I17 -> 43 | D14: -0.1024692552 | E14: 98.46296117 | F14: 98.46296117 | G14: 98.46296117
B15: ='Data Entry'!B83 -> Sarkuchi, Danny | C15: ='Class 5'!I18 -> 33 | D15: -0.7628266779 | E15: 88.55759983 | F15: 88.55759983 | G15: 88.55759983
B16: ='Data Entry'!B84 -> Schneider, Lucas | C16: ='Class 5'!I19 -> 32 | D16: -0.8288624201 | E16: 87.5670637 | F16: 87.5670637 | G16: 87.5670637
B17: ='Data Entry'!B85 -> Sellandro, Dennis | C17: ='Class 5'!I20 -> 53 | D17: 0.5578881674 | E17: 108.3683225 | F17: 108.3683225 | G17: 108.3683225
B18: ='Data Entry'!B86 -> Wallburg, Rose | C18: ='Class 5'!I21 -> 42 | D18: -0.1685049975 | E18: 97.47242504 | F18: 97.47242504 | G18: 97.47242504
B19: ='Data Entry'!B87 -> Wollmann, Jayson | C19: ='Class 5'!I22 -> 29 | D19: -1.026969647 | E19: 84.5954553 | F19: 84.5954553 | H19: 84.5954553
B20: ='Data Entry'!B88 -> Wood, Anna | C20: ='Class 5'!I23 -> 50 | D20: 0.3597809406 | E20: 105.3967141 | F20: 105.3967141 | G20: 105.3967141
B21: ='Data Entry'!B89 -> Yong, Liam | C21: ='Class 5'!I24 -> 67 | D21: 1.482388559 | E21: 122.2358284 | F21: 122.2358284 | G21: 122.2358284

Sheet Division Norms
C1: School Division Local Literacy Norms
C2: Schools | E2: Blending Syllables | F2: Blending Phonemes | G2: Segmenting Syllables | H2: Segmenting Phonemes | I2: Phonological Memory | J2: Letter Naming Fluency
B5: 1 | C5: Blumenort School | E5: 2.53 | F5: 1.67 | G5: 2.24 | H5: 1.12 | I5: 4.21 | J5: 31.95 | K5: Means
E6: 0.02 | F6: 0.02 | G6: 0.02 | H6: 0.02 | I6: 0.02 | J6: 4.02 | K6: SDs
B7: 2 | C7: Bothwell School | E7: 3.57 | F7: 2.95 | G7: 1.65 | H7: 2.45 | I7: 3.57 | J7: 43.57 | K7: Means
E8: 0.2 | F8: 0.2 | G8: 0.2 | H8: 0.2 | I8: 0.2 | J8: 6.2 | K8: SDs
B9: 3 | C9: Crystal Springs School | E9: 1.65 | F9: 2.55 | G9: 2.2 | H9: 1.5 | I9: 3.85 | J9: 51.65 | K9: Means
E10: 0.04 | F10: 0.12 | G10: 0.15 | H10: 1.23 | I10: 0.03 | J10: 8.04 | K10: SDs
B11: 4 | C11: Elmdale School | E11: 2.45 | F11: 2.95 | G11: 2.75 | H11: 1.95 | I11: 3.5 | J11: 42.45 | K11: Means
E12: 0.56 | F12: 0.56 | G12: 0.56 | H12: 0.56 | I12: 0.56 | J12: 0.56 | K12: SDs
B13: 5 | C13: Kleefeld School | E13: 2.2 | F13: 2.2 | G13: 2.2 | H13: 2.2 | I13: 4.25 | J13: 45.2 | K13: Means
E14: 0.92 | F14: 0.92 | G14: 0.92 | H14: 0.92 | I14: 0.92 | J14: 10.92 | K14: SDs
B15: 6 | C15: Landmark Elementary | E15: 3.9 | F15: 3.9 | G15: 3.9 | H15: 3.9 | I15: 3.95 | J15: 33.5 | K15: Means
E16: 0.85 | F16: 0.85 | G16: 0.85 | H16: 0.85 | I16: 0.85 | J16: 0.85 | K16: SDs
B17: 7 | C17: Mitchell Elementary | E17: 4.32 | F17: 2.8 | G17: 3.95 | H17: 3.85 | I17: 4.32 | J17: 51.2 | K17: Means
E18: 0.69 | F18: 0.69 | G18: 0.69 | H18: 0.69 | I18: 0.69 | J18: 0.69 | K18: SDs
B19: 8 | C19: Niverville Elementary | E19: 1.97 | F19: 1.97 | G19: 1.97 | H19: 1.97 | I19: 3.25 | J19: 21.97 | K19: Means
E20: 0.72 | F20: 0.72 | G20: 0.72 | H20: 0.72 | I20: 0.72 | J20: 5.72 | K20: SDs
B21: 9 | C21: South Oaks School | E21: 3.24 | F21: 3.24 | G21: 3.24 | H21: 3.24 | I21: 4.24 | J21: 53.24 | K21: Means
E22: 0.25 | F22: 0.25 | G22: 0.25 | H22: 0.25 | I22: 0.25 | J22: 10.25 | K22: SDs
B23: 10 | C23: Southwood School | E23: 2.43 | F23: 2.43 | G23: 2.43 | H23: 2.43 | I23: 3.43 | J23: 42.43 | K23: Means
E24: 0.02 | F24: 0.02 | G24: 0.02 | H24: 0.02 | I24: 0.02 | J24: 5.02 | K24: SDs
B25: 11 | C25: Woodlawn School | E25: 1.69 | F25: 1.69 | G25: 1.69 | H25: 1.69 | I25: 3.69 | J25: 51.69 | K25: Means
E26: .1.1 | F26: .1.1 | G26: .1.1 | H26: .1.1 | I26: .1.1 | J26: 12.1 | K26: SDs
D27: Grand Means: | E27: =AVERAGE(E5,E7,E9,E11,E13,E15,E17,E19,E21,E23,E25) -> 2.722727273 | F27: 2.577272727 | G27: 2.565454545 | H27: 2.390909091 | I27: 3.841818182 | J27: 42.62272727
C28: Standard Deviations: | E28: =AVERAGE(E6,E8,E10,E12,E14,E16,E18,E20,E22,E24,E26) -> 0.427 | F28: =AVERAGE(F6,F8,F10,F12,F14,F16,F18,F20,F22,F24,F26) -> 0.435 | G28: 0.438 | H28: 0.546 | I28: 0.426 | J28: 5.851818182
D29: Cut-Off Scores: | E29: =(E27-E28) -> 2.295727273 | F29: =(F27-F28) -> 2.142272727 | G29: 2.127454545 | H29: 1.844909091 | I29: 3.415818182 | J29: 36.77090909

Sheet Schools x Skills
B2: Schools | D2: Blending Syllables | E2: Blending Phonemes | F2: Segmenting Syllables | G2: Segmenting Phonemes | H2: Phonological Memory | I2: Letter Naming Fluency
A5: 1 | B5: Blumenort School | D5: ='Division Norms'!E5 -> 2.53 | E5: ='Division Norms'!F5 -> 1.67 | F5: ='Division Norms'!G5 -> 2.24 | G5: ='Division Norms'!H5 -> 1.12 | H5: ='Division Norms'!I5 -> 4.21 | I5: ='Division Norms'!J5 -> 31.95
D6: =(D5-D39)/D40 -> -0.4513519268 | E6: =(E5-E39)/E40 -> -2.085684431 | F6: -0.7430469074 | G6: -2.327672328 | H6: 0.8642765685 | I6: -1.823830977
B7: Std Scores | D7: =100+D6*15 -> 93.2297211 | E7: =100+E6*15 -> 68.71473354 | F7: 88.85429639 | G7: 65.08491508 | H7: 112.9641485 | I7: 72.64253534
A8: 2 | B8: Bothwell School | D8: ='Division Norms'!E7 -> 3.57 | E8: ='Division Norms'!F7 -> 2.95 | F8: ='Division Norms'!G7 -> 1.65 | G8: ='Division Norms'!H7 -> 2.45 | H8: ='Division Norms'!I7 -> 3.57 | I8: ='Division Norms'!J7 -> 43.57
D9: =(D8-D39)/D40 -> 1.984245263 | E9: =(E8-E39)/E40 -> 0.8568443051 | F9: -2.090078871 | G9: 0.1082251082 | H9: -0.6380708493 | I9: 0.1618766506
B10: Std Scores | D10: =100+D9*15 -> 129.7636789 | E10: =100+E9*15 -> 112.8526646 | F10: 68.64881694 | G10: 101.6233766 | H10: 90.42893726 | I10: 102.4281498
A11: 3 | B11: Crystal Springs School | D11: ='Division Norms'!E9 -> 1.65 | E11: ='Division Norms'!F9 -> 2.55 | F11: ='Division Norms'!G9 -> 2.2 | G11: ='Division Norms'!H9 -> 1.5 | H11: ='Division Norms'!I9 -> 3.85 | I11: ='Division Norms'!J9 -> 51.65
D12: =(D11-D39)/D40 -> -2.512241857 | E12: =(E11-E39)/E40 -> -0.06269592476 | F12: -0.8343711083 | G12: -1.631701632 | H12: 0.01920614597 | I12: 1.542644089
B13: Std Scores | D13: =100+D12*15 -> 62.31637215 | E13: =100+E12*15 -> 99.05956113 | F13: 87.48443337 | G13: 75.52447552 | H13: 100.2880922 | I13: 123.1396613
A14: 4 | B14: Elmdale School | D14: ='Division Norms'!E11 -> 2.45 | E14: ='Division Norms'!F11 -> 2.95 | F14: ='Division Norms'!G11 -> 2.75 | G14: ='Division Norms'!H11 -> 1.95 | H14: ='Division Norms'!I11 -> 3.5 | I14: ='Division Norms'!J11 -> 42.45
D15: =(D14-D39)/D40 -> -0.6387055567 | E15: =(E14-E39)/E40 -> 0.8568443051 | F15: 0.4213366542 | G15: -0.8075258075 | H15: -0.8023900982 | I15: -0.02951685568
B16: Std Scores | D16: =100+D15*15 -> 90.41941665 | E16: =100+E15*15 -> 112.8526646 | F16: 106.3200498 | G16: 87.88711289 | H16: 87.96414853 | I16: 99.55724716
A17: 5 | B17: Kleefeld School | D17: ='Division Norms'!E13 -> 2.2 | E17: ='Division Norms'!F13 -> 2.2 | F17: ='Division Norms'!G13 -> 2.2 | G17: ='Division Norms'!H13 -> 2.2 | H17: ='Division Norms'!I13 -> 4.25 | I17: ='Division Norms'!J13 -> 45.2
D18: =(D17-D39)/D40 -> -1.22418565 | E18: =(E17-E39)/E40 -> -0.8672936259 | F18: -0.8343711083 | G18: -0.3496503497 | H18: 0.9581732821 | I18: 0.4404225571
B19: Std Scores | D19: =100+D18*15 -> 81.63721524 | E19: =100+E18*15 -> 86.99059561 | F19: 87.48443337 | G19: 94.75524476 | H19: 114.3725992 | I19: 106.6063384
A20: 6 | B20: Landmark Elementary | D20: ='Division Norms'!E15 -> 3.9 | E20: ='Division Norms'!F15 -> 3.9 | F20: ='Division Norms'!G15 -> 3.9 | G20: ='Division Norms'!H15 -> 3.9 | H20: ='Division Norms'!I15 -> 3.95 | I20: ='Division Norms'!J15 -> 33.5
D21: =(D20-D39)/D40 -> 2.757078987 | E21: =(E20-E39)/E40 -> 3.040752351 | F21: 3.04690743 | G21: 2.763902764 | H21: 0.25394793 | I21: -1.558956035
B22: Std Scores | D22: =100+D21*15 -> 141.3561848 | E22: =100+E21*15 -> 145.6112853 | F22: 145.7036115 | G22: 141.4585415 | H22: 103.809219 | I22: 76.61565947
A23: 7 | B23: Mitchell Elementary | D23: ='Division Norms'!E17 -> 4.32 | E23: ='Division Norms'!F17 -> 2.8 | F23: ='Division Norms'!G17 -> 3.95 | G23: ='Division Norms'!H17 -> 3.85 | H23: ='Division Norms'!I17 -> 4.32 | I23: ='Division Norms'!J17 -> 51.2
D24: =(D23-D39)/D40 -> 3.740685544 | E24: =(E23-E39)/E40 -> 0.5120167189 | F24: 3.161062682 | G24: 2.672327672 | H24: 1.122492531 | I24: 1.465744912
B25: Std Scores | D25: =100+D24*15 -> 156.1102832 | E25: =100+E24*15 -> 107.6802508 | F25: 147.4159402 | G25: 140.0849151 | H25: 116.837388 | I25: 121.9861737
A26: 8 | B26: Niverville Elementary | D26: ='Division Norms'!E19 -> 1.97 | E26: ='Division Norms'!F19 -> 1.97 | F26: ='Division Norms'!G19 -> 1.97 | G26: ='Division Norms'!H19 -> 1.97 | H26: ='Division Norms'!I19 -> 3.25 | I26: ='Division Norms'!J19 -> 21.97
D27: =(D26-D39)/D40 -> -1.762827337 | E27: =(E26-E39)/E40 -> -1.396029258 | F27: -1.359485264 | G27: -0.7708957709 | H27: -1.389244558 | I27: -3.529283828
B28: Std Scores | D28: =100+D27*15 -> 73.55758995 | E28: =100+E27*15 -> 79.05956113 | F28: 79.60772105 | G28: 88.43656344 | H28: 79.16133163 | I28: 47.06074258
A29: 9 | B29: South Oaks School | D29: ='Division Norms'!E21 -> 3.24 | E29: ='Division Norms'!F21 -> 3.24 | F29: ='Division Norms'!G21 -> 3.24 | G29: ='Division Norms'!H21 -> 3.24 | H29: ='Division Norms'!I21 -> 4.24 | I29: ='Division Norms'!J21 -> 53.24
D30: =(D29-D39)/D40 -> 1.211411539 | E30: =(E29-E39)/E40 -> 1.523510972 | F30: 1.540058115 | G30: 1.555111555 | H30: 0.9346991037 | I30: 1.814354513
B31: Std Scores | D31: =100+D30*15 -> 118.1711731 | E31: =100+E30*15 -> 122.8526646 | F31: 123.1008717 | G31: 123.3266733 | H31: 114.0204866 | I31: 127.2153177
A32: 10 | B32: Southwood School | D32: ='Division Norms'!E23 -> 2.43 | E32: ='Division Norms'!F23 -> 2.43 | F32: ='Division Norms'!G23 -> 2.43 | G32: ='Division Norms'!H23 -> 2.43 | H32: ='Division Norms'!I23 -> 3.43 | I32: ='Division Norms'!J23 -> 42.43
D33: =(D32-D39)/D40 -> -0.6855439642 | E33: =(E32-E39)/E40 -> -0.3385579937 | F33: -0.3092569531 | G33: 0.0715950716 | H33: -0.966709347 | I33: -0.03293459686
B34: Std Scores | D34: =100+D33*15 -> 89.71684054 | E34: =100+E33*15 -> 94.92163009 | F34: 95.3611457 | G34: 101.0739261 | H34: 85.4993598 | I34: 99.50598105
A35: 11 | B35: Woodlawn School | D35: ='Division Norms'!E25 -> 1.69 | E35: ='Division Norms'!F25 -> 1.69 | F35: ='Division Norms'!G25 -> 1.69 | G35: ='Division Norms'!H25 -> 1.69 | H35: ='Division Norms'!I25 -> 3.69 | I35: ='Division Norms'!J25 -> 51.69
D36: =(D35-D39)/D40 -> -2.418565042 | E36: =(E35-E39)/E40 -> -2.039707419 | F36: -1.99875467 | G36: -1.283716284 | H36: -0.3563807085 | I36: 1.549479571
B37: Std Scores | D37: =100+D36*15 -> 63.72152438 | E37: =100+E36*15 -> 69.40438871 | F37: 70.01867995 | G37: 80.74425574 | H37: 94.65428937 | I37: 123.2421936
C39: Grand Means | D39: ='Division Norms'!E27 -> 2.722727273 | E39: ='Division Norms'!F27 -> 2.577272727 | F39: ='Division Norms'!G27 -> 2.565454545 | G39: ='Division Norms'!H27 -> 2.390909091 | H39: ='Division Norms'!I27 -> 3.841818182 | I39: ='Division Norms'!J27 -> 42.62272727
C40: Grand SDs | D40: ='Division Norms'!E28 -> 0.427 | E40: ='Division Norms'!F28 -> 0.435 | F40: ='Division Norms'!G28 -> 0.438 | G40: ='Division Norms'!H28 -> 0.546 | H40: ='Division Norms'!I28 -> 0.426 | I40: ='Division Norms'!J28 -> 5.851818182

Sheet Skills x Schools
B2: Schools | D2: Blending Syllables | E2: Blending Phonemes | F2: Segmenting Syllables | G2: Segmenting Phonemes | H2: Phonological Memory | I2: Letter Naming Fluency
A5: 1 | B5: Blumenort School | D5: ='Division Norms'!E5 -> 2.53 | E5: ='Division Norms'!F5 -> 1.67 | F5: ='Division Norms'!G5 -> 2.24 | G5: ='Division Norms'!H5 -> 1.12 | H5: ='Division Norms'!I5 -> 4.21 | I5: ='Division Norms'!J5 -> 31.95
D6: =(D5-D39)/D40 -> -0.4513519268 | E6: =(E5-E39)/E40 -> -2.085684431 | F6: -0.7430469074 | G6: -2.327672328 | H6: 0.8642765685 | I6: -1.823830977
B7: Std Scores | D7: =100+D6*15 -> 93.2297211 | E7: =100+E6*15 -> 68.71473354 | F7: 88.85429639 | G7: 65.08491508 | H7: 112.9641485 | I7: 72.64253534
A8: 2 | B8: Bothwell School | D8: ='Division Norms'!E7 -> 3.57 | E8: ='Division Norms'!F7 -> 2.95 | F8: ='Division Norms'!G7 -> 1.65 | G8: ='Division Norms'!H7 -> 2.45 | H8: ='Division Norms'!I7 -> 3.57 | I8: ='Division Norms'!J7 -> 43.57
D9: =(D8-D39)/D40 -> 1.984245263 | E9: =(E8-E39)/E40 -> 0.8568443051 | F9: -2.090078871 | G9: 0.1082251082 | H9: -0.6380708493 | I9: 0.1618766506
B10: Std Scores | D10: =100+D9*15 -> 129.7636789 | E10: =100+E9*15 -> 112.8526646 | F10: 68.64881694 | G10: 101.6233766 | H10: 90.42893726 | I10: 102.4281498
A11: 3 | B11: Crystal Springs School | D11: ='Division Norms'!E9 -> 1.65 | E11: ='Division Norms'!F9 -> 2.55 | F11: ='Division Norms'!G9 -> 2.2 | G11: ='Division Norms'!H9 -> 1.5 | H11: ='Division Norms'!I9 -> 3.85 | I11: ='Division Norms'!J9 -> 51.65
D12: =(D11-D39)/D40 -> -2.512241857 | E12: =(E11-E39)/E40 -> -0.06269592476 | F12: -0.8343711083 | G12: -1.631701632 | H12: 0.01920614597 | I12: 1.542644089
B13: Std Scores | D13: =100+D12*15 -> 62.31637215 | E13: =100+E12*15 -> 99.05956113 | F13: 87.48443337 | G13: 75.52447552 | H13: 100.2880922 | I13: 123.1396613
A14: 4 | B14: Elmdale School | D14: ='Division Norms'!E11 -> 2.45 | E14: ='Division Norms'!F11 -> 2.95 | F14: ='Division Norms'!G11 -> 2.75 | G14: ='Division Norms'!H11 -> 1.95 | H14: ='Division Norms'!I11 -> 3.5 | I14: ='Division Norms'!J11 -> 42.45
D15: =(D14-D39)/D40 -> -0.6387055567 | E15: =(E14-E39)/E40 -> 0.8568443051 | F15: 0.4213366542 | G15: -0.8075258075 | H15: -0.8023900982 | I15: -0.02951685568
B16: Std Scores | D16: =100+D15*15 -> 90.41941665 | E16: =100+E15*15 -> 112.8526646 | F16: 106.3200498 | G16: 87.88711289 | H16: 87.96414853 | I16: 99.55724716
A17: 5 | B17: Kleefeld School | D17: ='Division Norms'!E13 -> 2.2 | E17: ='Division Norms'!F13 -> 2.2 | F17: ='Division Norms'!G13 -> 2.2 | G17: ='Division Norms'!H13 -> 2.2 | H17: ='Division Norms'!I13 -> 4.25 | I17: ='Division Norms'!J13 -> 45.2
D18: =(D17-D39)/D40 -> -1.22418565 | E18: =(E17-E39)/E40 -> -0.8672936259 | F18: -0.8343711083 | G18: -0.3496503497 | H18: 0.9581732821 | I18: 0.4404225571
B19: Std Scores | D19: =100+D18*15 -> 81.63721524 | E19: =100+E18*15 -> 86.99059561 | F19: 87.48443337 | G19: 94.75524476 | H19: 114.3725992 | I19: 106.6063384
A20: 6 | B20: Landmark Elementary | D20: ='Division Norms'!E15 -> 3.9 | E20: ='Division Norms'!F15 -> 3.9 | F20: ='Division Norms'!G15 -> 3.9 | G20: ='Division Norms'!H15 -> 3.9 | H20: ='Division Norms'!I15 -> 3.95 | I20: ='Division Norms'!J15 -> 33.5
D21: =(D20-D39)/D40 -> 2.757078987 | E21: =(E20-E39)/E40 -> 3.040752351 | F21: 3.04690743 | G21: 2.763902764 | H21: 0.25394793 | I21: -1.558956035
B22: Std Scores | D22: =100+D21*15 -> 141.3561848 | E22: =100+E21*15 -> 145.6112853 | F22: 145.7036115 | G22: 141.4585415 | H22: 103.809219 | I22: 76.61565947
A23: 7 | B23: Mitchell Elementary | D23: ='Division Norms'!E17 -> 4.32 | E23: ='Division Norms'!F17 -> 2.8 | F23: ='Division Norms'!G17 -> 3.95 | G23: ='Division Norms'!H17 -> 3.85 | H23: ='Division Norms'!I17 -> 4.32 | I23: ='Division Norms'!J17 -> 51.2
D24: =(D23-D39)/D40 -> 3.740685544 | E24: =(E23-E39)/E40 -> 0.5120167189 | F24: 3.161062682 | G24: 2.672327672 | H24: 1.122492531 | I24: 1.465744912
B25: Std Scores | D25: =100+D24*15 -> 156.1102832 | E25: =100+E24*15 -> 107.6802508 | F25: 147.4159402 | G25: 140.0849151 | H25: 116.837388 | I25: 121.9861737
A26: 8 | B26: Niverville Elementary | D26: ='Division Norms'!E19 -> 1.97 | E26: ='Division Norms'!F19 -> 1.97 | F26: ='Division Norms'!G19 -> 1.97 | G26: ='Division Norms'!H19 -> 1.97 | H26: ='Division Norms'!I19 -> 3.25 | I26: ='Division Norms'!J19 -> 21.97
D27: =(D26-D39)/D40 -> -1.762827337 | E27: =(E26-E39)/E40 -> -1.396029258 | F27: -1.359485264 | G27: -0.7708957709 | H27: -1.389244558 | I27: -3.529283828
B28: Std Scores | D28: =100+D27*15 -> 73.55758995 | E28: =100+E27*15 -> 79.05956113 | F28: 79.60772105 | G28: 88.43656344 | H28: 79.16133163 | I28: 47.06074258
A29: 9 | B29: South Oaks School | D29: ='Division Norms'!E21 -> 3.24 | E29: ='Division Norms'!F21 -> 3.24 | F29: ='Division Norms'!G21 -> 3.24 | G29: ='Division Norms'!H21 -> 3.24 | H29: ='Division Norms'!I21 -> 4.24 | I29: ='Division Norms'!J21 -> 53.24
D30: =(D29-D39)/D40 -> 1.211411539 | E30: =(E29-E39)/E40 -> 1.523510972 | F30: 1.540058115 | G30: 1.555111555 | H30: 0.9346991037 | I30: 1.814354513
B31: Std Scores | D31: =100+D30*15 -> 118.1711731 | E31: =100+E30*15 -> 122.8526646 | F31: 123.1008717 | G31: 123.3266733 | H31: 114.0204866 | I31: 127.2153177
A32: 10 | B32: Southwood School | D32: ='Division Norms'!E23 -> 2.43 | E32: ='Division Norms'!F23 -> 2.43 | F32: ='Division Norms'!G23 -> 2.43 | G32: ='Division Norms'!H23 -> 2.43 | H32: ='Division Norms'!I23 -> 3.43 | I32: ='Division Norms'!J23 -> 42.43
D33: =(D32-D39)/D40 -> -0.6855439642 | E33: =(E32-E39)/E40 -> -0.3385579937 | F33: -0.3092569531 | G33: 0.0715950716 | H33: -0.966709347 | I33: -0.03293459686
B34: Std Scores | D34: =100+D33*15 -> 89.71684054 | E34: =100+E33*15 -> 94.92163009 | F34: 95.3611457 | G34: 101.0739261 | H34: 85.4993598 | I34: 99.50598105
A35: 11 | B35: Woodlawn School | D35: ='Division Norms'!E25 -> 1.69 | E35: ='Division Norms'!F25 -> 1.69 | F35: ='Division Norms'!G25 -> 1.69 | G35: ='Division Norms'!H25 -> 1.69 | H35: ='Division Norms'!I25 -> 3.69 | I35: ='Division Norms'!J25 -> 51.69
D36: =(D35-D39)/D40 -> -2.418565042 | E36: =(E35-E39)/E40 -> -2.039707419 | F36: -1.99875467 | G36: -1.283716284 | H36: -0.3563807085 | I36: 1.549479571
B37: Std Scores | D37: =100+D36*15 -> 63.72152438 | E37: =100+E36*15 -> 69.40438871 | F37: 70.01867995 | G37: 80.74425574 | H37: 94.65428937 | I37: 123.2421936
C39: Grand Means | D39: ='Division Norms'!E27 -> 2.722727273 | E39: ='Division Norms'!F27 -> 2.577272727 | F39: ='Division Norms'!G27 -> 2.565454545 | G39: ='Division Norms'!H27 -> 2.390909091 | H39: ='Division Norms'!I27 -> 3.841818182 | I39: ='Division Norms'!J27 -> 42.62272727
C40: Grand SDs | D40: ='Division Norms'!E28 -> 0.427 | E40: ='Division Norms'!F28 -> 0.435 | F40: ='Division Norms'!G28 -> 0.438 | G40: ='Division Norms'!H28 -> 0.546 | H40: ='Division Norms'!I28 -> 0.426 | I40: ='Division Norms'!J28 -> 5.851818182
